Workbook

Sheet Main Page
A1: Virginia Department of Education | O1: 1
A2: Office of ESEA Programs
A3: P. O. Box 2120
A4: Richmond, Virginia 23218-2120
A6: Title III, Part A, Language Instruction for English Learners and Immigrant Students
A8: Due by: | G8: 2022-07-01
G9: =YEAR(G8) & "-" & YEAR(G8)+1 -> 2022-2023
A12: Select the division name from the dropdown box. The division number will auto populate.
A13: School Division: | F13: Richmond City Public Schools
A14: Division Number: | F14: =IF(ISBLANK(F13)," ",VLOOKUP(F13,Prefills!A6:B145,2)) -> 123
C17: Select the appropriate tab(s) and press the "Print" button. | K17: Select the appropriate button to move to the desired section within the application.
C18: Print Application | K18: Application Directory
B19: Tab # | C19: Check Mark | D19: Tab Name | I19: Button # | K19: Push This Button to Go to the Desired Page
A20: FALSE | D20: Print All Tabs below | I20: 1 | J20: B9
A21: FALSE | D21: Budget Check | I21: 2 | J21: D7
A22: FALSE | D22: Narrative | I22: 3 | J22: B2
A23: FALSE | D23: Budget | I23: 4 | J23: B43
A24: FALSE | D24: Transferability | I24: 5 | J24: B2
A25: FALSE | D25: Title III Program | I25: 6 | J25: B41
A26: FALSE | D26: IY | I26: 7 | J26: B2
A27: FALSE | D27: Private Schools | I27: 8 | J27: B72
A28: FALSE | D28: GEPA | I28: 9 | J28: B141
A29: FALSE | D29: Expenditure Descriptions | I29: 10 | J29: B2
A30: FALSE | D30: General Assurances | I30: 11 | J30: B2
A31: FALSE | D31: Program Specific Assurances | I31: 12 | J31: B30
I32: 13 | J32: B2
I33: 14 | J33: B2
I34: 15 | J34: B2
I35: 16 | J35: B2
I36: Button #

Sheet Budget Check
B1: Virginia Department of Education
B2: Office of ESEA Programs
B3: P. O. Box 2120
B4: Richmond, Virginia 23218-2120
B6: Title III, Part A, Language Instruction for English Learners and Immigrant Students
B8: ='Main Page'!G9 -> 2022-2023
B9: Autocalculated Budget Check
B10: Note: Only budget errors will display in column D. If column D is blank after the Budget and Transferability tabs have been updated the budgets are balanced.
B12: School Division: | D12: ='Main Page'!F13 -> Richmond City Public Schools
B13: Division Number: | D13: ='Main Page'!F14 -> 123
B15: Budget Tab
B16: 1000 | C16: Total Personnel Services | D16: =IF(Budget!O12="Yes","","Budget summary does not match the detailed budget breakdown") -> 
B17: 2000 | C17: Total Employee Benefits | D17: =IF(Budget!O16="Yes","","Budget summary does not match the detailed budget breakdown") -> 
B18: 3000 | C18: Total Purchased/Contracted Services | D18: =IF(Budget!O19="Yes","","Budget summary does not match the detailed budget breakdown") -> 
B19: 4000 | C19: Total Internal Services | D19: =IF(Budget!O22="Yes","","Budget summary does not match the detailed budget breakdown") -> 
B20: 5000 | C20: Total Other Charges | D20: =IF(Budget!O26="Yes","","Budget summary does not match the detailed budget breakdown") -> 
B21: 6000 | C21: Total Materials & Supplies | D21: =IF(Budget!O30="Yes","","Budget summary does not match the detailed budget breakdown") -> 
B22: 8000 | C22: Total Capital Outlay | D22: =IF(Budget!O32="Yes","","Budget summary does not match the detailed budget breakdown") -> 
C23: Does the Budget Summary Match the Total Allocation? | D23: =IF(Budget!H35="Yes", "","Budget summary does not match the total allocation") -> 
B24: Detailed Budget Breakdown
C25: Does the Detailed Budget Breakdown Match the Total Allocation? | D25: =IF(Budget!I45="Yes", "","Detailed budget breakdown does not match the total allocation") -> 
B27: Transferability Tab
B28: 1000 | C28: Total Personnel Services | D28: =IF(Transferability!Q14="Yes","","Transferability budget summary does not match the detailed budget breakdown") -> 
B29: 2000 | C29: Total Employee Benefits | D29: =IF(Transferability!Q18="Yes","","Transferability budget summary does not match the detailed budget breakdown") -> 
B30: 3000 | C30: Total Purchased/Contracted Services | D30: =IF(Transferability!Q21="Yes","","Transferability budget summary does not match the detailed budget breakdown") -> 
B31: 4000 | C31: Total Internal Services | D31: =IF(Transferability!Q24="Yes","","Transferability budget summary does not match the detailed budget breakdown") -> 
B32: 5000 | C32: Total Other Charges | D32: =IF(Transferability!Q28="Yes","","Transferability budget summary does not match the detailed budget breakdown") -> 
B33: 6000 | C33: Total Materials & Supplies | D33: =IF(Transferability!Q32="Yes","","Transferability budget summary does not match the detailed budget breakdown") -> 
B34: 8000 | C34: Total Capital Outlay | D34: =IF(Transferability!Q34="Yes","","Transferability budget summary does not match the detailed budget breakdown") -> 
C35: Does the Transferability Budget Summary Match the Amount Transferred into Program? | D35: =IF(Transferability!H38="Yes", "","Transferability budget summary does not match the amount transferred into program") -> 
B36: Detailed Budget Breakdown
C37: Does the Transferability Detailed Budget Breakdown Match the Transferability Allocation? | D37: =IF(Transferability!J44="Yes", "","Transferability detailed budget breakdown does not match the transferability allocation") -> 

Sheet Narrative
N1: Place an "X" by the applicable response.
D2: Virginia Department of Education | N2: X | O2: Original
D3: Office of ESEA Programs
D4: P. O. Box 2120 | O4: Revision :
D5: Richmond, Virginia 23218-2120 | O5: Revision #
O6: Date:
D7: A. COVER PAGE | O7: Explain
D8: ='Main Page'!A6 -> Title III, Part A, Language Instruction for English Learners and Immigrant Students | O8: Amendment:
O9: Amendment #
D10: ='Main Page'!$G$9 -> 2022-2023 | O10: Date:
D11: Individual Program Application | O11: Explain
D13: ="Due by " & TEXT('Main Page'!G8,"mmmm dd, yyyy") -> Due by July 01, 2022
D14: Elementary and Secondary Education Act of 1965 (ESEA), as amended by
D15: the Every Student Succeeds Act of 2015 (ESSA), P.L. 114-95
B17: To be Completed by School Division
B18: Applicant (Legal Name of Agency): | I18: Division Number: | K18: Title III, Part A Coordinator:
B19: ='Main Page'!$F$13 -> Richmond City Public Schools | I19: ='Main Page'!$F$14 -> 123 | K19: Adam Miller/Jannette Duhart
B20: Mailing Address (Street, City or Town, Zip Code) | I20: Phone: | K20: (804) 780-1887 | N20: Ext:
B21: 301 North 9th Street, 13th FL Richmond, VA 23219 | I21: Email:
I22: amiller5@rvaschools.net
B24: ='Main Page'!$G$9 & " Title III, Part A Allocation:" -> 2022-2023 Title III, Part A Allocation: | F24: =K24+P24 -> 429835.88 | H24: EL Award Amount: | K24: 380560.28 | M24: I/Y Award Amount: | P24: 49275.6
B26: Divisions that receive an Immigrant Children and Youth (IY) award must complete the “IY” tab after allocations are released.
B28: LOCAL EDUCATIONAL AGENCY CERTIFICATION
B29: Use of Funds: The applicant designated above applies for an allocation of federal assistance as appropriated under ESEA. Funds are available to support local education reform efforts that are consistent with statewide education reform efforts to: 1) provide funding to implement promising education reform programs and school improvement programs based on evidence-based research; 2) provide a continuing source of innovative and educational improvement; 3) meet the educational needs of all students; and 4) develop and implement education programs to improve student achievement and teacher performance. Specific uses of funds for this application are found in the "Guidelines, Instructions, and Assurances" document.
B31: Assurances: The local educational agency assures that the Title III, Part A, program will be administered and implemented in compliance with all applicable statutes, regulations, policies, and program plans. Additionally, the local educational agency agrees by signing below to implement the general and program specific assurances located in the application. The assurances and signed cover page are to be retained at the division level.
B33: Certification: We hereby certify that, to the best of our knowledge, the information contained in this application is correct. The agency named above has authorized us as its representatives to file this application, and such action is recorded in the minutes of the School Board meeting held
B34: on | C34: 2022-06-21 | F34: .
B37: Superintendent’s Signature | I37: Board Chairperson’s Signature
B38: Mr. Jason Kamras | I38: Dr. Shonda Harris-Muhammed
B39: Superintendent’s Name | I39: Board Chairperson’s Name
B40: 2022-06-27 | I40: 2022-06-27
B41: Date | I41: Date
B43: ="Application Submission, Approval, and LEA Expenditure of Funds: Applications for Federal Funds are due by " & TEXT('Main Page'!G8,"mmmm dd, yyyy") & ". Revisions and Amendments should be submitted in a timely manner. " -> Application Submission, Approval, and LEA Expenditure of Funds: Applications for Federal Funds are due by July 01, 2022. Revisions and Amendments should be submitted in a timely manner.
B44: ="Please note, in order for the funds to be expendable by " & TEXT('Main Page'!G8,"mmmm dd, yyyy") & ", the electronic application must be received at the Virginia Department of Education by " & TEXT('Main Page'!G8,"mmmm dd, yyyy") & ", through the file submission process of the Online Management of Education Grant Awards (OMEGA) system. " -> Please note, in order for the funds to be expendable by July 01, 2022, the electronic application must be received at the Virginia Department of Education by July 01, 2022, through the file submission process of the Online Management of Education Grant Awards (OMEGA) system.
B45: Page 1
B46: ='Main Page'!$G$9 -> 2022-2023 | C46: School Division: | E46: ='Main Page'!$F$13 -> Richmond City Public Schools | I46: Division Number: | J46: ='Main Page'!F14 -> 123 | K46: ='Main Page'!$A$6 -> Title III, Part A, Language Instruction for English Learners and Immigrant Students
B47: APPLICATION INFORMATION
B49: Does the allocation total match the total in cell F24? | H49: =IF(SUM(O52)=SUM(F24),"Yes","No - Please review your entries.") -> Yes
B50: =YEAR('Main Page'!$G$8)-1 & "-" & YEAR('Main Page'!$G$8) -> 2021-2022 | D50: =YEAR('Main Page'!$G$8)-1 & "-" & YEAR('Main Page'!$G$8) -> 2021-2022 | F50: Eligible Program | O50: ='Main Page'!G9 -> 2022-2023
B51: Allocation | D51: Consolidated Yes or No | O51: Allocation Total
B52: =IF(ISBLANK('Main Page'!$F$13)," ",VLOOKUP('Main Page'!$F$14,Prefills!D6:F145,3)) -> 416097.51 | D52: No | F52: Title III, Part A, English Learners: (Total of: a + b; only a; or only b) | O52: =SUM(L53:N54) -> 429835.88
F53: a. EL Subgrant | K53: Subtotal | L53: =K24 -> 380560.28
F54: b. Immigrant Children and Youth Subgrant | K54: Subtotal | L54: =P24 -> 49275.6
F55: Title II, Part A Transferability | O55: =N63 -> 0
F56: Title IV, Part A Transferability | O56: =N66 -> 0
F57: Total Allocation | O57: =SUM(O52+O55+O56) -> 429835.88
B59: TRANSFERABILITY
B60: Section 5103(b)(2) of the Every Student Succeeds Act allows LEAs to transfer funds between certain qualifying federal programs. If funds are transferred into or out of the Title II, Part A, program, PRIOR APPROVAL IS REQUIRED, and a separate Transferability approval form must be submitted. The transfer request form is available at
B61: Transfer Request Form
B62: Program from which funds will be transferred: | G62: TO | H62: Program TO which funds will be transferred: | N62: Amount
B63: Title II, Part A | H63: Title III, Part A, English Learners (EL Subgrant)
B65: Program from which funds will be transferred: | G65: TO | H65: Program TO which funds will be transferred: | N65: Amount
B66: Title IV, Part A | H66: Title III, Part A, English Learners (EL Subgrant)
B68: Page 2
B69: ='Main Page'!$G$9 -> 2022-2023 | C69: School Division: | E69: ='Main Page'!$F$13 -> Richmond City Public Schools | I69: Division Number: | J69: ='Main Page'!$F$14 -> 123 | K69: ='Main Page'!$A$6 -> Title III, Part A, Language Instruction for English Learners and Immigrant Students
B70: REVISIONS AND AMENDMENTS
B71: Place an "X" in the first box indicating whether it is a revision or amendment. Enter the date of the revision or amendment. Indicate the tab(s) that have been changed. Provide a concise description of changes (for example, "Programmatic Changes--purchase of additional reading materials, object code 6000; Budget Changes--decreased travel budget in object code 5000 and increased materials to purchase additional reading materials in object code 6000"). When completing an amendment, changes to the program overview may be reflected as additions at the end of the narrative. NOTE: Any changes to the program budget should first be reflected in an amended application, followed by a budget transfer within 7 business days of approval of the amended application. Budget transfers will not be accepted without an approved amended application reflecting budget changes.
B72: 1. | C72: Revision: | E72: X | F72: Date: | G72: 2022-09-30 | I72: Allocations for RPS and private schools revised according to Supt Memo 196-22. Revisions based on VDOE feedback dated 9/9/22. IY information included.
C73: Amendment: | F73: Date:
B75: 2. | C75: Revision: | E75: X | F75: Date: | G75: 2022-11-08 | I75: Specified stipends will be paid only during non-contracted hours (ln 50); specified that contracted PD is specifically for IY content instructors (ln 136); moved administrative costs to EL subgrant in budget summary and descriptions ($8,596.71 = 2% of total award); aligned EL and IY OC 6000 descriptions and costs with budget summary.
C76: Amendment: | F76: Date:
B78: 3. | C78: Revision: | F78: Date:
C79: Amendment: | F79: Date:
B81: 4. | C81: Revision: | F81: Date:
C82: Amendment: | F82: Date:
B84: 5. | C84: Revision: | F84: Date:
C85: Amendment: | F85: Date:
B87: 6. | C87: Revision: | F87: Date:
C88: Amendment: | F88: Date:
B90: 7. | C90: Revision: | F90: Date:
C91: Amendment: | F91: Date:
B93: 8. | C93: Revision: | F93: Date:
C94: Amendment: | F94: Date:
B96: 9. | C96: Revision: | F96: Date:
C97: Amendment: | F97: Date:
B99: 10. | C99: Revision: | F99: Date:
C100: Amendment: | F100: Date:
B102: 11. | C102: Revision: | F102: Date:
C103: Amendment: | F103: Date:
B105: 12. | C105: Revision: | F105: Date:
C106: Amendment: | F106: Date:
B108: Page 3

Sheet Budget
B1: ='Main Page'!$G$9 -> 2022-2023 | C1: School Division: | E1: ='Main Page'!$F$13 -> Richmond City Public Schools | I1: Division Number: | J1: ='Main Page'!$F$14 -> 123 | K1: ='Main Page'!$A$6 -> Title III, Part A, Language Instruction for English Learners and Immigrant Students
B2: B. BUDGET SUMMARY
B4: Title III funds may be used to provide supplemental services that improve the English language proficiency and academic achievement of English Learners (ELs), including the provision of language instruction educational programs (LIEPs) and activities that increase the knowledge and skills of teachers who serve ELs. All services provided to ELs using Title III funds must supplement, and not supplant, the services that must be provided to ELs under Title VI of the Civil Rights Act of 1964 (Title VI), the Equal Educational Opportunities Act of 1974 (EEOA), and other federal requirements, as well as those under State or local laws.
H6: Title III, Part A Budget for 2022-2023 Award: S365A220046 Project Codes: APE60509 (IY) & APE60512 (EL)
H7: Allocation: | K7: =Narrative!O52 -> 429835.88
B8: OBJECT CODE | C8: EXPENDITURE | H8: EL SUBGRANT | K8: IMMIGRANT CHILDREN & YOUTH (IY) SUBGRANT | O8: DOES BUDGET SUMMARY MATCH DETAIL BUDGET?
B9: 1000 - Personnel Services | C9: Administrative
C10: Non-Administrative | H10: 197691 | K10: 20000
C11: Private School Set-Aside
C12: Total Personal Services | H12: =SUM(H9:J11) -> 197691 | K12: =SUM(K9:N11) -> 20000 | O12: =IF(SUM(P83)=SUM(H12:N12),"Yes", "No - Please review your entries.") -> Yes
B13: 2000 - Employee Benefits | C13: Administrative
C14: Non-Administrative | H14: 79940.5 | K14: 382.5
C15: Private School Set-Aside
C16: Total Employee Benefits | H16: =SUM(H13:J15) -> 79940.5 | K16: =SUM(K13:N15) -> 382.5 | O16: =IF(SUM(P130)=SUM(H16:N16),"Yes", "No - Please review your entries.") -> Yes
B17: 3000 - Purchased/ Contracted Services | C17: Contracted Services | H17: 64381.72 | K17: 21208.53
C18: Private School Set-Aside | H18: 8092.29 | K18: 0
C19: Total Purchased/Contracted Services | H19: =SUM(H17:J18) -> 72474.01 | K19: =SUM(K17:N18) -> 21208.53 | O19: =IF(SUM(P174)=SUM(H19:N19),"Yes", "No - Please review your entries.") -> Yes
B20: 4000 - Internal Services | C20: Internal Services
C21: Private School Set-Aside
C22: Total Internal Services | H22: =SUM(H20:J21) -> 0 | K22: =SUM(K20:N21) -> 0 | O22: =IF(SUM(P220)=SUM(H22:N22),"Yes", "No - Please review your entries.") -> Yes
B23: 5000 - Other Charges | C23: Indirect Cost | H23: 8596.71 | K23: 0
C24: Non-Administrative
C25: Private School Set-Aside
C26: Total Other Charges | H26: =SUM(H23:J25) -> 8596.71 | K26: =SUM(K23:N25) -> 0 | O26: =IF(SUM(P265)=SUM(H26:N26),"Yes", "No - Please review your entries.") -> Yes
B27: 6000 - Materials and Supplies | C27: Administrative
C28: Materials | H28: 21858.06 | K28: 7684.57
C29: Private School Set-Aside
C30: Total Materials and Supplies | H30: =SUM(H27:J29) -> 21858.06 | K30: =SUM(K27:N29) -> 7684.57 | O30: =IF(SUM(P312)=SUM(H30:N30),"Yes", "No - Please review your entries.") -> Yes
B31: 8000 - Capital Outlay | C31: Non-Administrative
C32: Total Capital Outlay | H32: =SUM(H31:J31) -> 0 | K32: =SUM(K31:N31) -> 0 | O32: =IF(SUM(P354)=SUM(H32:N32),"Yes", "No - Please review your entries.") -> Yes
C33: TOTAL SUBGRANT BUDGET | H33: =H12+H16+H19+H22+H26+H30+H32 -> 380560.28 | K33: =K12+K16+K19+K22+K26+K30+K32 -> 49275.6
C34: TOTAL ALLOCATION | H34: =H33+K33 -> 429835.88
C35: DOES THE BUDGET SUMMARY MATCH THE TOTAL ALLOCATION? | H35: =IF(SUM(H34)=SUM(K7),"Yes", "No - Please review your entries.") -> Yes | K35: Difference | O35: =H34-K7 -> 0
C36: TOTAL SET-ASIDE | H36: =H9+H13+H23+H27 -> 8596.71
C37: TOTAL PRIVATE SCHOOL SET-ASIDE | H37: =H11+H15+H18+H21+H25+H29 -> 8092.29
C39: NOTES: (1) Object codes 7000 and 9000 are not used in application budgets or in requests for reimbursements for this federal grant. (2) Administrative costs are limited to 2 percent or less of the EL subgrant award including indirect costs. (3) Indirect costs claims are subject to the availability of funds and statutory or administrative restrictions. Title III, Part A and Title IV, Part A, place a statutory limitation or cap on administrative costs. Because the cap applies to the combined claims for indirect costs and direct administrative costs, divisions may not be able to claim the entirety of their indirect costs. The amount unrecovered may not be shifted to another federal award. (4) Expenses for parental involvement programs are to be incorporated into the appropriate object code(s) based on the category of the related charges.
B41: Page 4
B42: ='Main Page'!$G$9 -> 2022-2023 | C42: School Division: | E42: ='Main Page'!$F$13 -> Richmond City Public Schools | I42: Division Number: | J42: ='Main Page'!$F$14 -> 123 | K42: ='Main Page'!$A$6 -> Title III, Part A, Language Instruction for English Learners and Immigrant Students
B43: C. DETAILED BUDGET BREAKDOWN
B44: Prepare a detailed breakdown of the budget categories for Object Codes 1000-6000 and 8000. Choose the appropriate category for each expense in the dropdown list under "Funding Source."
B45: Does the Detailed Budget Breakdown Match the Total Allocation? | I45: =IF(SUM(H34)=SUM(P83, P130, P174, P220, P265, P312, P354),"Yes","No - Please review your entries.") -> Yes
B47: DETAILED BUDGET DESCRIPTION OF OBJECT CODE 1000
B48: Provide a description of the positions supported with funds from this program. Indicate if any positions are newly funded under this program. Explain the supplementary nature of any new positions. (Required if staff positions are to be funded by federal funds).
B49: The EL Instructional Coach will support the language assistance program for EL students through professional development, coaching sessions, and as needed. The Language Justice Coordinator supports EL families and staff by working to remove language as a barrier to resources, information, and family engagement; also by providing essential trainings and resources to facilitate communication and access. The Coordinator is split funded between Title III at 30% and the LEA at 70%. The Bilingual Dropout Prevention and Graduation Support Specialist will support ELs and EL families. The Specialist is responsible for offering drop-out prevention services, career and community connections, and trauma-informed care. The BDPGS counsels with students individually and in small groups for specifically identified needs including personal, academic, and vocational growth support for students/families. The Specialist provides facilitated learning support to all Spanish-speaking LIEP students, intense social-emotional support to include reunification services, small groups, home-visits, connections to mental health support and outside resources, consults with parents, school staff, other pupil personnel specialists, and community agency personnel to help students experiencing personal problems and assists students in making appropriate vocational choices and provides information on career goals. The Specialist also provides support as a graduation coach to include data analysis, transcript evaluations, assistance in assigning students in the right courses/path to graduation, and assistance to students with the completion of a career survey.
B50: Stipends for teachers will be used to train parents during parent workshops throughout the year to assist parents with working with their children at home during non-contracted hours. Stipends will als be used to support staff doing dropout prevention for both EL and IY students during non-contracted hours. Stipends will also be provided to PD participants and teachers preparing and providing PD sessions during non-contracted hours.
B51: Please provide a detailed description of Private School activities (If no private school set-aside is present, please enter N/A).
B52: N/A
B53: Item Description | J53: Category | N53: FTEs | P53: Total Cost
B54: EL Instructional Coach | J54: EL Subgrant | N54: 1 | P54: 73631
B55: Language Justice Coordinator | J55: EL Subgrant | N55: 0.3 | P55: 25741
B56: Bilingual Dropout Prevention and Graduation Support - Specialist | J56: EL Subgrant | N56: 1 | P56: 73319
B57: Stipends for parent engagement workshops | J57: EL Subgrant | P57: 5000
B58: Stipends for teachers and multilingual language access liaisons | J58: EL Subgrant | P58: 15000
B59: Stipends for staff supporting drop out prevention initiative (EL) | J59: EL Subgrant | P59: 5000
B60: Stipends for staff supporting drop out prevention initiative (IY) | J60: IY Subgrant | P60: 20000
J83: Total for Object Code: | N83: =SUM(N54:O82) -> 2.3 | P83: =SUM(P54:R82) -> 217691
B85: Page 5
B86: ='Main Page'!$G$9 -> 2022-2023 | C86: School Division: | E86: ='Main Page'!$F$13 -> Richmond City Public Schools | I86: Division Number: | J86: ='Main Page'!$F$14 -> 123 | K86: ='Main Page'!$A$6 -> Title III, Part A, Language Instruction for English Learners and Immigrant Students
B87: DETAILED BUDGET DESCRIPTION OF OBJECT CODE 2000
B88: Indicate the fixed charge categories (such as FICA, health, etc.) and specify the amount of each.
B89: Full time position benefits (FICA, Worker's Compensation, Health, Group Life, VRS, Retirement, Unemployment,Goup Life, Medicare) Stipend benefits during non-contracted hours (FICA)
B91: Please provide a detailed description of Private School activities (If no private school set-aside is present, please enter N/A).
B92: N/A
B93: Item Description | L93: Category | P93: Total Cost
B94: Benefits for EL Instructional coach | L94: EL Subgrant | P94: 44103
B95: Benefits for Language Justice Coordinator | L95: EL Subgrant | P95: 10610
B96: FICA for parent support and PD stipends | L96: EL Subgrant | P96: 535.5
B97: Benefits for Stipends for staff supporting drop out prevention efforts (EL) | L97: EL Subgrant | P97: 2765
B98: Benefits for Bilingual Dropout Prevention and Graduation Support Specialist | L98: EL Subgrant | P98: 21927
B99: Benefits for Stipends for staff supporting drop out prevention efforts (IY) | L99: IY Subgrant | P99: 382.5
L130: Total for Object Code: | P130: =SUM(P94:R129) -> 80323
B132: Page 6
B133: ='Main Page'!$G$9 -> 2022-2023 | C133: School Division: | E133: ='Main Page'!$F$13 -> Richmond City Public Schools | I133: Division Number: | J133: ='Main Page'!$F$14 -> 123 | K133: ='Main Page'!$A$6 -> Title III, Part A, Language Instruction for English Learners and Immigrant Students
B134: DETAILED BUDGET DESCRIPTION OF OBJECT CODE 3000
B135: Please indicate how these funds will support any services and activities that are described in this application. If program funds are expended for professional development, justify such expenditures by demonstrating a relationship between the proposed expenditure for professional development and the program services and activities described in the application.
B136: Ellevation training will help teachers monitor & evaluate EL and IY students in language assistance programs and exit EL and IY students from programs when proficient. This will also help to monitor exited students to ensure students are not prematurely exited. Conferences such as Teachers of English to Speakers of Other Languages (TESOL); Virginia Teachers of English to Speakers of Other Languages (VATESOL); Foreign Language Association of Virginia (FLAVA); Bilingual, Immigrant, and Refugee Meeting (BIRE); and World-Class Instructional Design and Assessment (WIDA) are needed training for teachers working with English Learners. Parent Learning Series will provide meaningful communication with limited English proficient parents. Parent Learning Series meals will be provided for workshop attendees. Professional development services will be contracted for content teachers who work specifically with IY-identified students. A consultation service provider will be contracted to consult with IY students and their parents/caregivers.
B138: Please provide a detailed description of Private School activities (If no private school set-aside is present, please enter N/A).
B139: Participating private schools will use allocations for literacy instruction to support EL student achievement such as Read 180, Read 180 PD, and correlating teacher kits. In addition, private schools may use funds to support EL participation in the Institute of Reading Development (IRD) program. The Institute of Reading Development program's goal is to improve reading, writing, and study skills of ELs from Pre-K to the 11th grade. Participating private may use funds to contract literacy tutoring services for EL students.
B140: Item Description | L140: Category | P140: Total Cost
B141: Ellevation (EL) | L141: EL Subgrant | P141: 59976.75
B142: Ellevation (IY) | L142: IY Subgrant | P142: 15000
B143: Private school allocation to provide tutoring services to EL students | L143: EL Subgrant | P143: 7822.55
B144: Private school allocation to purchase online learning platform for EL students | L144: EL Subgrant | P144: 269.74
B145: Parent Learning Series workshops meals | L145: EL Subgrant | P145: 4404.97
B146: PD for Content Teachers of IY students (pending the availability of IY funds) | L146: IY Subgrant | P146: 4208.53
B147: Consultation services for IY students and their parents/caregivers | L147: IY Subgrant | P147: 2000
L174: Total for Object Code: | P174: =SUM(P141:R173) -> 93682.54
B176: Page 7
B177: ='Main Page'!$G$9 -> 2022-2023 | C177: School Division: | E177: ='Main Page'!$F$13 -> Richmond City Public Schools | I177: Division Number: | J177: ='Main Page'!$F$14 -> 123 | K177: ='Main Page'!$A$6 -> Title III, Part A, Language Instruction for English Learners and Immigrant Students
B178: DETAILED BUDGET DESCRIPTION OF OBJECT CODE 4000
B179: If program funds are expended for internal services, describe these services below.
B180: N/A
B182: Please provide a detailed description of Private School activities (If no private school set-aside is present, please enter N/A).
B183: N/A
B184: Item Description | L184: Category | P184: Total Cost
L220: Total for Object Code: | P220: =SUM(P185:R219) -> 0
B222: Page 8
B223: ='Main Page'!$G$9 -> 2022-2023 | C223: School Division: | E223: ='Main Page'!$F$13 -> Richmond City Public Schools | I223: Division Number: | J223: ='Main Page'!$F$14 -> 123 | K223: ='Main Page'!$A$6 -> Title III, Part A, Language Instruction for English Learners and Immigrant Students
B224: DETAILED BUDGET DESCRIPTION OF OBJECT CODE 5000
B225: Provide a description for expenses related to object code 5000. Include expenditures that support the use of programs. Includes expenditures that support the program, staff/administrative/consultant travel, office phone charges, training, leases/rental, indirect cost, and other.
B226: Indirect costs, which are limited to 2%.
B228: Please provide a detailed description of Private School activities (If no private school set-aside is present, please enter N/A).
B229: N/A
B230: Item Description | L230: Category | P230: Total Cost
B231: Indirect costs | L231: EL Subgrant | P231: 8596.71
L265: Total for Object Code: | P265: =SUM(P231:R264) -> 8596.71
B267: Page 9
B268: ='Main Page'!$G$9 -> 2022-2023 | C268: School Division: | E268: ='Main Page'!$F$13 -> Richmond City Public Schools | I268: Division Number: | J268: ='Main Page'!$F$14 -> 123 | K268: ='Main Page'!$A$6 -> Title III, Part A, Language Instruction for English Learners and Immigrant Students
B269: DETAILED BUDGET DESCRIPTION OF OBJECT CODE 6000
B270: Provide a description of materials, supplies, and all equipment less $5,000 per unit. Indicate the estimated quantity of each item.
B271: Parent Learning Series will ensure meaningful communication with limited English proficient Parents. Materials and supplies to enhance this effort will be used to provide books and literature for parent workshops as wells as books that parents can take home to build home libraries. Supplies and Materials will assist with programs that are educationally proven as successful, such as student workbooks, replacement dictionaries, and other student learning supplemental materials for EL and IY students. Supplies and materials will also be used in preparation and training of staff to support students in EL and IY programs.
B273: Please provide a detailed description of Private School activities (If no private school set-aside is present, please enter N/A).
B274: N/A
B275: Item Description | J275: Category | N275: Quantity | P275: Total Cost
B277: Parent Learning Series materials and supplies - books and literature for parent workshops (EL) | J277: EL Subgrant | P277: 7168.63
B278: Parent Learning Series materials and supplies - books and literature for parent workshops (IY) | J278: IY Subgrant | P278: 3000
B279: Student workbooks, replacement dictionaries, and student learning supplemental materials (EL) | J279: EL Subgrant | P279: 9506.66
B280: Student workbooks, replacement dictionaries, and student learning supplemental materials (IY) | J280: IY Subgrant | P280: 3699.06
B281: Staff training materials and supplies (EL) | J281: EL Subgrant | P281: 5182.77
B282: Staff training materials and supplies (IY) | J282: IY Subgrant | P282: 985.51
L312: Total for Object Code: | P312: =SUM(P276:R311) -> 29542.63
B314: Page 10
B315: ='Main Page'!$G$9 -> 2022-2023 | C315: School Division: | E315: ='Main Page'!$F$13 -> Richmond City Public Schools | I315: Division Number: | J315: ='Main Page'!$F$14 -> 123 | K315: ='Main Page'!$A$6 -> Title III, Part A, Language Instruction for English Learners and Immigrant Students
B316: DETAILED BUDGET DESCRIPTION OF OBJECT CODE 8000
B317: Provide a description for expenses related to object code. All capital outlay expenditures over $5,000 per unit must be approved by the Virginia Department of Education through the application submission and approval process. If the local school division has established a threshold of a lesser amount, items equal to that amount or greater must be itemized in Object Code 8000. Specify equipment quantities.
B318: N/A
B320: Item Description | J320: Category | N320: Quantity | P320: Total Cost
L354: Total for Object Code: | P354: =SUM(P321:R353) -> 0
B356: Page 11

Sheet Transferability
B1: ='Main Page'!$G$9 -> 2022-2023 | D1: School Division: | E1: ='Main Page'!$F$13 -> Richmond City Public Schools | I1: Division Number: | J1: ='Main Page'!$F$14 -> 123 | K1: ='Main Page'!$A$6 -> Title III, Part A, Language Instruction for English Learners and Immigrant Students
B2: D. BUDGET SUMMARY
B4: Section 5103(b)(2) of ESSA allows divisions to transfer all or a portion of the funds received from Title II, Part A, or Title IV, Part A, into: Title I, Part A; Title I, Part C; Title I, Part D; Title II, Part A; Title III, Part A; Title IV, Part A; or Title V, Part B.
B6: Complete the tab below if funds will be transferred under Section 5103(b)(2). Please note that prior approval is required to transfer funds. The transfer request form is provided at
B7: Transfer Request Form
H8: Title II, Part A, Transferability Award S367A220044 Project Code APE60016 | M8: Title IV, Part A, Transferability Award S424A220048 Project Code APE60023
H9: =Narrative!N63 -> 0 | M9: =Narrative!N66 -> 0
B10: OBJECT CODE | C10: EXPENDITURE | H10: AMOUNT TRANSFERRED INTO PROGRAM | Q10: DOES THE BUDGET SUMMARY MATCH THE DETAILED BUDGET BREAKDOWN?
B11: 1000 - Personnel Services | C11: Administrative
C12: Non-Administrative
C13: Private School Set-Aside
C14: Total Personal Services | H14: =SUM(H11:K13) -> 0 | M14: =SUM(M11:P13) -> 0 | Q14: =IF(SUM(P77)=SUM(H14,M14),"Yes", "No - Please review your entries.") -> Yes
B15: 2000 - Employee Benefits | C15: Administrative
C16: Non-Administrative
C17: Private School Set-Aside
C18: Total Employee Benefits | H18: =SUM(H15:K17) -> 0 | M18: =SUM(M15:P17) -> 0 | Q18: =IF(SUM(P127)=SUM(H18,M18),"Yes","No - Please review your entries.") -> Yes
B19: 3000 - Purchased/ Contracted Services | C19: Conracted Services
C20: Private School Set-Aside
C21: Total Purchased/Contracted Services | H21: =SUM(H19:K20) -> 0 | M21: =SUM(M19:P20) -> 0 | Q21: =IF(SUM(P175)=SUM(H21,M21),"Yes","No - Please review your entries.") -> Yes
B22: 4000 - Internal Services | C22: Internal Services
C23: Private School Set-Aside
C24: Total Internal Services | H24: =SUM(H22:K23) -> 0 | M24: =SUM(M22:P23) -> 0 | Q24: =IF(SUM(P224)=SUM(H24,M24),"Yes","No - Please review your entries.") -> Yes
B25: 5000 - Other Charges | C25: Indirect Cost
C26: Non-Administrative
C27: Private School Set-Aside
C28: Total Other Charges | H28: =SUM(H25:K27) -> 0 | M28: =SUM(M25:P27) -> 0 | Q28: =IF(SUM(P271)=SUM(H28,M28),"Yes","No - Please review your entries.") -> Yes
B29: 6000 - Materials and Supplies | C29: Administrative
C30: Materials
C31: Private School Set-Aside
C32: Total Materials and Supplies | H32: =SUM(H29:K31) -> 0 | M32: =SUM(M29:P31) -> 0 | Q32: =IF(SUM(P316)=SUM(H32,M32),"Yes","No - Please review your entries.") -> Yes
B33: 8000 - Capital Outlay | C33: Non-Administrative
C34: Total Capital Outlay | H34: =SUM(H33:K33) -> 0 | M34: =SUM(M33:P33) -> 0 | Q34: =IF(SUM(P358)=SUM(H34,M34),"Yes","No - Please review your entries.") -> Yes
C35: TOTAL BUDGET | H35: =SUM(H34,H32,H28,H24,H21,H18,H14) -> 0 | M35: =SUM(M14,M18,M21,M24,M28,M32,M34) -> 0
C36: TOTAL SET-ASIDE | H36: =H11+H15+H25+H29 -> 0 | M36: =M11+M15+M25+M29 -> 0
C37: TOTAL PRIVATE SCHOOL SET-ASIDE | H37: =SUM(H13,H17,H20,H23,H27,H31) -> 0 | M37: =SUM(M13,M17,M20,M23,M27,M31) -> 0
C38: DOES THE TRANSFERABILITY BUDGET SUMMARY MATCH THE TRANSFERABILITY ALLOCATION? | H38: =IF(SUM(H35,M35)=SUM(H9,M9),"Yes","No - Please review your entries.") -> Yes | M38: Difference | Q38: =SUM(H35+M35)-SUM(H9+M9) -> 0
B40: Page 12
B41: ='Main Page'!$G$9 -> 2022-2023 | D41: School Division: | E41: ='Main Page'!$F$13 -> Richmond City Public Schools | I41: Division Number: | J41: ='Main Page'!$F$14 -> 123 | K41: ='Main Page'!$A$6 -> Title III, Part A, Language Instruction for English Learners and Immigrant Students
B42: E. DETAILED BUDGET BREAKDOWN
B43: Prepare a detailed breakdown of the budget categories for Object Codes 1000-6000 and 8000. Choose the appropriate category for each expense in the dropdown list under "Funding Source."
B44: Does the Transferability Detailed Budget Breakdown Match the Transferability Allocation? | J44: =IF(SUM(H35,M35)=SUM(P77,P127,P175, P224, P271, P316, P358),"Yes","No - Please review your entries.") -> Yes
B46: DETAILED BUDGET DESCRIPTION OF OBJECT CODE 1000
B47: Provide a description of the positions supported with funds from this program. Indicate if any positions are newly funded under this program. Explain the supplementary nature of any new positions. (Required if staff positions are to be funded by federal funds).
B50: Please provide a detailed description of Private School activities (If no private school set-aside is present, please enter N/A).
B52: Item Description | J52: Funding Source | N52: FTEs | P52: Total Cost
J77: Total for Object Code: | N77: =SUM(N53:O76) -> 0 | P77: =SUM(P53:R76) -> 0
B79: Page 13
B80: ='Main Page'!$G$9 -> 2022-2023 | D80: School Division: | E80: ='Main Page'!$F$13 -> Richmond City Public Schools | I80: Division Number: | J80: ='Main Page'!$F$14 -> 123 | K80: ='Main Page'!$A$6 -> Title III, Part A, Language Instruction for English Learners and Immigrant Students
B81: DETAILED BUDGET DESCRIPTION OF OBJECT CODE 2000
B82: Indicate the fixed charge categories (such as FICA, health insurance, etc.) and specify the amount of each.
B85: Please provide a detailed description of Private School activities (If no private school set-aside is present, please enter N/A).
B87: Item Description | M87: Funding Source | P87: Total Cost
L127: Total for Object Code: | P127: =SUM(P88:R126) -> 0
B128: Page 14
B129: ='Main Page'!$G$9 -> 2022-2023 | D129: School Division: | E129: ='Main Page'!$F$13 -> Richmond City Public Schools | I129: Division Number: | J129: ='Main Page'!$F$14 -> 123 | K129: ='Main Page'!$A$6 -> Title III, Part A, Language Instruction for English Learners and Immigrant Students
B130: DETAILED BUDGET DESCRIPTION OF OBJECT CODE 3000
B131: Please indicate how these funds will support any services and activities that are described in this application. If program funds are expended for professional development, justify such expenditures by demonstrating a relationship between the proposed expenditure for professional development and the program services and activities described in the application.
B134: Please provide a detailed description of Private School activities (If no private school set-aside is present, please enter N/A).
B136: Item Description | M136: Funding Source | P136: Total Cost
L175: Total for Object Code: | P175: =SUM(P137:R174) -> 0
B177: Page 15
B178: ='Main Page'!$G$9 -> 2022-2023 | D178: School Division: | E178: ='Main Page'!$F$13 -> Richmond City Public Schools | I178: Division Number: | J178: ='Main Page'!$F$14 -> 123 | K178: ='Main Page'!$A$6 -> Title III, Part A, Language Instruction for English Learners and Immigrant Students
B179: DETAILED BUDGET DESCRIPTION OF OBJECT CODE 4000
B180: If program funds are expended for internal services, describe these services below.
B183: Please provide a detailed description of Private School activities (If no private school set-aside is present, please enter N/A).
B185: Item Description | M185: Funding Source | P185: Total Cost
L224: Total for Object Code: | P224: =SUM(P186:R223) -> 0
B225: Page 16
B226: ='Main Page'!$G$9 -> 2022-2023 | D226: School Division: | E226: ='Main Page'!$F$13 -> Richmond City Public Schools | I226: Division Number: | J226: ='Main Page'!$F$14 -> 123 | K226: ='Main Page'!$A$6 -> Title III, Part A, Language Instruction for English Learners and Immigrant Students
B227: DETAILED BUDGET DESCRIPTION OF OBJECT CODE 5000
B228: Provide a description for expenses related to object code 5000. Include expenditures that support the use of programs. Includes expenditures that support the program, staff/administrative/consultant travel, office phone charges, training, leases/rental, indirect cost, and other.
B231: Please provide a detailed description of Private School activities (If no private school set-aside is present, please enter N/A).
B233: Item Description | M233: Funding Source | P233: Total Cost
L271: Total for Object Code: | P271: =SUM(P234:R270) -> 0
B272: Page 17
B273: ='Main Page'!$G$9 -> 2022-2023 | D273: School Division: | E273: ='Main Page'!$F$13 -> Richmond City Public Schools | I273: Division Number: | J273: ='Main Page'!$F$14 -> 123 | K273: ='Main Page'!$A$6 -> Title III, Part A, Language Instruction for English Learners and Immigrant Students
B274: DETAILED BUDGET DESCRIPTION OF OBJECT CODE 6000
B275: Provide a description of materials, supplies, and all equipment less $5,000 per unit. Indicate the estimated quantity of each item.
B278: Please provide a detailed description of Private School activities (If no private school set-aside is present, please enter N/A).
B280: Item Description | J280: Funding Source | N280: Quantity | P280: Total Cost
J316: Total for Object Code: | P316: =SUM(P281:R315) -> 0
B317: Page 18
B318: ='Main Page'!$G$9 -> 2022-2023 | D318: School Division: | E318: ='Main Page'!$F$13 -> Richmond City Public Schools | I318: Division Number: | J318: ='Main Page'!$F$14 -> 123 | K318: ='Main Page'!$A$6 -> Title III, Part A, Language Instruction for English Learners and Immigrant Students
B319: DETAILED BUDGET DESCRIPTION OF OBJECT CODE 8000
B320: Provide a description for expenses related to object code. All capital outlay expenditures over $5,000 per unit must be approved by the Virginia Department of Education through the application submission and approval process. If the local school division has established a threshold of a lesser amount, items equal to that amount or greater must be itemized in Object Code 8000. Specify equipment quantities.
B323: Item Description | J323: Funding Source | N323: Quantity | P323: Total Cost
J358: Total for Object Code: | P358: =SUM(P324:R357) -> 0
B359: Page 19

Sheet Title III Program
B1: ='Main Page'!$G$9 -> 2022-2023 | D1: School Division: | E1: ='Main Page'!$F$13 -> Richmond City Public Schools | I1: Division Number: | J1: ='Main Page'!$F$14 -> 123 | K1: ='Main Page'!$A$6 -> Title III, Part A, Language Instruction for English Learners and Immigrant Students
B2: F. PROGRAMS AND SERVICES FOR ELs AND THEIR FAMILIES
B4: Federal Civil Rights Requirements Divisions must provide programs and services for the education of English Learners (ELs) under Title VI of the Civil Rights Act of 1964, the Equal Educational Opportunities Act of 1974 (EEOA), Lau v Nichols (1974), Castañeda v Pickard (1981) and other civil rights laws and federal statutes and guidance. Federal funds, including Title III, cannot be used to meet the federal requirements for ELs. Under the Castañeda standards, programs and services for ELs should: 1) be based on effective education theory and/or research recognized by legitimate experts in the field; 2) be implemented with fidelity and adequate resources to ensure a realistic chance of success within a reasonable timeframe; and 3) lead to improved academic outcomes within this reasonable timeframe.
B6: Description of an Effective LIEP Supported by Local and/or State Funds: The division must implement an effective language instruction educational program (LIEP) in order to meet the needs of ELs and demonstrate success in increasing their English language proficiency and student academic achievement.
B8: Narrative Boxes:
B9: Box 1: | C9: Using Local and/or State Funds: Using Local and/or State Funds: Describe how instruction is delivered to ELs at varying proficiency levels and grade span levels to develop their English language proficiency and increase their ability to meet challenging State academic standards. Include specialized programs for newcomer ELs, SLIFE, “opt-out” ELs, dually-identified ELs, ELs at higher proficiency levels, long-term ELs, if applicable.
B10: English Learners (ELs) are assessed, identified, and placed within their home-school or may opt in to a newcomers academy at the elementary, middle, and high level. Language services are provided to students who are designated by the state definition as ELs as measured by the WIDA Screener, or ACCESS for ELLs assessment. ELs are enrolled in core classes, where Virginia's Standards of Learning are aligned to form a written, taught, and assessed curriculum. RPS will implement the following models for core-content and language support: newcomers classes, self-contain, co-teaching ESL, and non-traditional alternative programs. Instruction is differentiated at the core and ESL classroom through the use of best practices, ESL strategies, ExC-ELL, and shelter instruction to meet the needs of ELs at all proficiency levels, Long-term ELs, EL students with limited or interrupted formal education (SLIFE), and Dually-identified ELs or DIEL. EL teachers provide language instruction, intervention, and remediation based on the student's academic needs as evidenced by ACCESS for ELLs, benchmarks, PALs, IEPs, 504, academic needs based on native language academic proficiency, and formative and summative assessments. Instruction and language support for ELs depend strictly on English language proficiency (ELP) levels and academic needs. Through the use of small groups and targeted assistance, students are provided instructional activities such as demonstration and modeling. The program will provide academic support as well as social-emotional growth, an intensive skills focus, and appropriately scaffolded instructional strategies. A student who has recently arrived to the United States, has attended a US school for less than 1 year, and has WIDA Screener score of 1.0-1.9 may be placed into an ESL class, Newcomer Program at the middle school, or Newcomers Academy at the high school. The goal of the Newcomer Program is to target language instruction so that ELs will spend no more than a year developing basic interpersonal communication skills (BICS) and cognitive academic language proficiency (CALP) that are aligned with WIDA standards and Virginia's SOLs. RPS will also offer an ESL Model with co-teaching instruction and pullout language instruction for English Learners at overall composite English Language Proficiency (ELP) levels of 2.0-4.3. Students who have an ELP score of 2.0-4.3 will be placed in general education classroom with EL teacher support. Students will also be placed in an ESL I-IV class for additional language support at the secondary level; students will participate in collaboratively taught general education settings with a core content teacher and a LIEP teacher. To service opt-out ELs, principals at each EL's home-school will provide intensive interventions and remediation for ELs that opt-out or refuse to participate in the RPS LIEP.
B12: Box 2: | C12: Using Local and/or State Funds: Describe the division’s plan to provide effective professional development that specifically relates to the identification and teaching of ELs as identified in Box 1.
B13: Professional development sessions include, but are not limited to TOT ELLevations Database and Strategies as an instructional tool training; ExC-ELL training; the Language Instruction Educational Programs: LIEP 2023 for all staff to include Principal Directors, administrators, specialists, teachers, counselors, and other instructional staff; Teaching ELs in content classroom; Best Practices: ESOL strategies for content teachers; EL Committee, ELs educational plans, and Testing accommodations plans; Registration protocol for front office staff, registrar, LIEP teachers, and counselors; Working with ELs families: Bus drivers; Working with ELs families: Nurses; ESOL Praxis Prep Course for content teachers; and the 6 Principles for Exemplary Teaching of ELs: The LIEP framework. RPS LIEP will continue to enhance the LIEP eLearning Lab to offer and provide access to recordings of PD sessions, webinars and workshops available to all staff 24 hours per day and 7 days per week.
B15: Implementation of an Effective LIEP Supported by Local and/or State Funds: The division must carry out a comprehensive analysis of the EL population within the division in order to 1) design programs and services that will meet the needs of students; and 2) to determine the necessary resources for an effective implementation of the LIEP.
B17: Box 3: | C17: Provide the following information regarding the division-wide EL population for SY 2021-2022
B18: The number of ELs division-wide (Level 1-4.3) | O18: 3127
B19: The percentage of ELs who reached proficiency (4.4+ on the ACCESS for ELLs assessment) | O19: 0.04
B20: The percentage of ELs who made progress toward reaching proficiency | O20: 0.17
B21: The number of endorsed ESL teachers directly serving ELs | O21: 84
B23: Page 20
B24: ='Main Page'!$G$9 -> 2022-2023 | D24: School Division: | E24: ='Main Page'!$F$13 -> Richmond City Public Schools | I24: Division Number: | J24: ='Main Page'!$F$14 -> 123 | K24: ='Main Page'!$A$6 -> Title III, Part A, Language Instruction for English Learners and Immigrant Students
B25: F. PROGRAMS AND SERVICES FOR ELs AND THEIR FAMILIES (CONTINUED)
B27: Box 4: | C27: Identify the amount of targeted language instruction for ELs the division determines appropriate at each proficiency level and/or grade span level (example: K- x number of minutes, x times a week, 1-5, 6-8, 9-12 etc. or Level 1 students x number of minutes, x times a week, Level 2, Level 3, Level 4 etc.).
B28: Direct language service is provided by ESL certified teachers. The amount of instructional time the EL receives will depend on the grade level and English Language Proficiency (ELP) score of the EL. Minutes of Service are provided as follows: Grades K Level 1-5 (150 minutes); Grades 1-4 Level 1 (225 minutes) Level 2-5 (200 minutes); Grades 5-8 Level 1 (300 minutes) Level 2 (225 minutes) Level 3-4 (220 minutes) Level 5 (150 minutes); Grades 9-12 Level 1 (300 minutes) Level 2 (225 minutes) Level 3 (220 minutes) Level 4 (200 minutes). There is an approximate 50:1 student/teacher ratio. There is a recommended coursework sequence for High School from grades 9 through 12 to ensure that students have the credits needed to obtain a high school diploma in four years. All ELs are required to have an English Learner Educational Plan and growth trajectories for English proficiency. An EL Plan is a document that describes the academic and language needs of, and goals for, an EL. The purpose of developing the EL plan is to ensure all students are being served and on track to meet the linguistic and academic expectations for each year. The EL Educational plan and other pertinent information is available through the ELLevations Database.
B30: Evaluation of the Effectiveness of the LIEP Supported by Local and/or State Funds: The division must evaluate the LIEP to determine its effectiveness in helping ELs make progress toward achieving English proficiency, exit the LIEP, and meet challenging State academic standards within a reasonable timeframe.
B32: Box 5: | C32: Describe the division’s procedures to evaluate programs and services for ELs. Include the following information: • A timeline for evaluation; • The titles of stakeholders involved in the evaluation process; and • The data collected by the division to determine the effectiveness of the LIEP. Data elements may include:
D33: • EL academic achievement indicators by grade span or content area, • Specific LIEP secondary courses, • Student or parent surveys, • EL graduation rates, • ELs with disabilities, • Long Term ELs, • SLIFE (added for 2022), and • Formerly ELs (4.4+ on the ACCESS for ELLs assessment).
B34: RPS will conduct a comprehensive program evaluation every two years. The next needs assessment will be conducted in SY22-23. RPS Academic Supports and Student Services conducted an internal evaluation from October 2019 to March 2020. A needs assessment report was made available in June 2020. The LIEP department created a survey and conducted school visits to determine the program's effectiveness. The evaluation is conducted in order to ensure that our programs meet their goals of helping EL students develop English language skills and acquire content area competencies. The LIEP survey was shared with multiple stakeholders. We also created a school visit rubric based on the TESOL (2018) 6 Principles for Exemplary Teaching of ELs, the RPS LIEP framework. The evaluation served as an indicator of strengths and specific needs of the program to: 1. Ensure that Federal guidelines are being implemented 2. Review the curriculum to ensure fidelity 3. Review instructional materials for alignment with EL needs 4. Observe classrooms to evaluate instruction and engagement between teachers and students 5. Review student data to calculate the growth in English language proficiency (WIDA). 6. Evaluate how front office staff in schools create spaces to welcome students and families and use the appropriate tools to communicate with 100% of their diverse families. The RPS instructional team access data/SOL to provide appropriate instruction for students. At the division level, we include the Title III Coordinator, EL Specialists, Director of Academic Programs & Supports, Director of Curriculum & Instruction, Title I Coordinator, ES/MS/HS Principal Directors, and SPED Coordinator to review data and to make determination of program effectiveness. The RPS Office of Grant Monitoring and Compliance offers support with monitoring expenditures and provisions for supplement vs. supplant. At the school level Title III Coordinator & Specialist meets with teachers on a monthly bases to determine student need and program effectiveness.
B35: RPS will review SOL and WIDA assessment data as well as using input from the Title III, Part A Coordinator, EL teachers, EL instructional Assistants, parent liaisons, parent facilitator, and other EL staff. Parent and student feedback on program implementation will also be obtained. Class rosters and student grades will be monitored for progress on a quarterly basis. Data from Ellevation and Imagine Learning will also be reviewed to make program improvements and adjustments.
B38: Page 21
B39: ='Main Page'!$G$9 -> 2022-2023 | D39: School Division: | E39: ='Main Page'!$F$13 -> Richmond City Public Schools | I39: Division Number: | J39: ='Main Page'!$F$14 -> 123 | K39: ='Main Page'!$A$6 -> Title III, Part A, Language Instruction for English Learners and Immigrant Students
B40: F. PROGRAMS AND SERVICES FOR ELs AND THEIR FAMILIES (CONTINUED)
B42: Box 6: | C42: If applicable describe the LIEP modifications to be introduced to address specific concerns identified in the evaluation process.
B43: To ensure ELs are identified accurately and effectively, the registration process has been modified. The RPS Welcome Center will register and assess all possible K-12 ELs. The registration application was updated to include the three language questions previously found on the Home Language Survey. RPS will use a variety of identification tools to accurately identify and locate EL students and to progress monitor students through transitions from elementary to middle school and middle school to high school. After ELs are identified, they will be placed in the appropriate grade and LIEP. A LIEP Manual has been updated to address academic, language, administrator, and teacher training to aid with a step by step guidelines to ensure that the needs of ELs are being met. RPS created and implemented procedures to ensure ELs have equitable access to specialized programs, such as gifted, CTE and special education programs. RPS conducts consultation meetings with private schools beginning in April to ensure that students are being identified and receiving appropriate support from Richmond City Public Schools.
B45: Outreach to Limited English Proficient (LEP) Parents, Families, and Community Organizations: The division must communicate meaningfully with LEP parents, families, and community organizations, and must notify LEP parents in a timely fashion in a language they can understand about programs, services, or activities that are made available to the general student population.
B47: Box 7: | C47: Using Local and/or State Funds: Describe how the division provides outreach to LEP parents and families to allow them the opportunity to participate in their student’s education. Include how the division provides language assistance, such as third party vendors, contracted interpreters and translators, or telephone or digital language services, to parents who may require it.
B48: The division strives to provide a welcoming environment for all students to include ELs and their families. To support incoming ELs families, RPS operates one Welcome Center and has hired a Welcome Center Specialist. The purpose of the Welcome Center is to assist families with various cultural and linguistic needs. The Welcome center is staffed with bilingual personnel (Spanish). Possible English learners and parents are interviewed, and the students are assessed, identified, registered, and placed as new ELs if applicable. Parental and community participation will be promoted by EL Division staff and the LIEP advisory council, La Comunidad. Monthly meetings with La Comunidad and Bi-monthly parent learning series for parents will focus on practical information about the U.S. school system and increasing meaningful parent participation in the educational process. Parents will be encouraged to participate to aid them in their children's education. Parent meetings will focus on relevant school policies, procedures, teacher communication, graduation requirements, Standards of Learning, assistance with homework, report card and school activities. RPS will ensure outreach activities include the translation of materials and interpretation for families as appropriate.
B50: Page 22
B51: ='Main Page'!$G$9 -> 2022-2023 | D51: School Division: | E51: ='Main Page'!$F$13 -> Richmond City Public Schools | I51: Division Number: | J51: ='Main Page'!$F$14 -> 123 | K51: ='Main Page'!$A$6 -> Title III, Part A, Language Instruction for English Learners and Immigrant Students
B52: F. PROGRAMS AND SERVICES FOR ELs AND THEIR FAMILIES (CONTINUED)
B54: Box 8: | C54: Coordination of Service. Describe the partnership between this program community, organizations, and other local, state and/or federal programs within the division. Possible services could include: community partnerships, specialized programs, such as the gifted program, college and career readiness, special education, preschool, Title I, Title II, and Title IV.
B55: RPS will incorporate funds from its Title II, Part A program to support the acquisition of credentials for general education teachers to complete the ESOL Praxis test, which could lead to an endorsement in ESL through an ESOL Praxis Voucher Program. RPS partners with its Title I, Part A program to provide Imagine Learning for ELs. Imagine Learning is a web-based supplemental education platform that will be used to support EL student learning. As a research-based language and literacy software program Imagine Learning accelerates English language learning. It differentiates instruction and focuses on oral language, academic vocabulary and core content subject areas. The program highlights general academic words and content-specific vocabulary words. The Career and Technical Education (CTE), McKinney-Vento for Homeless Education, and Exceptional Education programs support the achievement of our EL population, by providing resources and programmatic support to EL students and parents.
B57: Application ESSA Compliance Components using Title III Funds
B58: Sec. 3115(g) Supplement Not Supplant: Federal funds made available under this subgrant shall be used so as to supplement the level of Federal, State and local funds that, in the absence of such availability, would have been expended for programs for English learners and immigrant children and youth and in no case to supplant such Federal, state and local public funds. Sec. 3115(c)(1-3) Required Subgrantee Activities using Title III Funds
B60: Box 9: | C60: Describe how the LEA will use Title III funds to provide supplemental support to help ELs increase EL proficiency and meet the challenging State academic standards. This may include providing resources, materials, personnel, curriculum enhancement, coordination with other programs and creative initiatives to support an effective LIEP. This description should align with expenditures outlined in the Budget Summary and Detailed Budget Description.
B61: RPS will use Title III, Part A funds to provide EL support staff in the form of one EL Instructional Coach and one Bilingual Dropout Prevention and Graduation Support Specialist. These positions supplement the positions that RPS provides via local funding and are an effort to enhance the efficiency and effectiveness of the LIEP support services to help ELs increase proficiency and meet the challenging State academic standards. Ellevations has been purchased to provide training to help monitor ELs progress and is used to provide a web-based student management system that provides data management, which enhances instructional decision making and supports progress monitoring of ELs achievement. RPS will use Ellevation strategies to enhance instruction for ELs in the content classroom.
B63: Page 23
B64: ='Main Page'!$G$9 -> 2022-2023 | D64: School Division: | E64: ='Main Page'!$F$13 -> Richmond City Public Schools | I64: Division Number: | J64: ='Main Page'!$F$14 -> 123 | K64: ='Main Page'!$A$6 -> Title III, Part A, Language Instruction for English Learners and Immigrant Students
B65: F. PROGRAMS AND SERVICES FOR ELs AND THEIR FAMILIES (CONTINUED)
B67: Box 10: | C67: Describe how the LEA will use Title III funds to provide supplemental support for effective professional development (PD) to support: 1) classroom teachers, 2) principals, 3) support staff, 4) administrators, and 5) others. This description should align with expenditures outlined in the Budget Summary and Detailed Budget Description.
B68: The EL Instructional Coach will offer PD sessions and webinars to ensure principal directors, coordinators, specialists, principals, LIEP teachers and content teachers are proficient in the use of Ellevation Strategies to scaffold instruction in order to meet the language needs of ELs at ELP levels 1-4.3. Training on the use of Ellevation Strategies will be provided to teachers, administrators, and other instructional staff. Funds will be utilized to support the participation of LIEP teachers, general education teachers, coordinators and staff in professional development opportunities offered locally, in-state and nationwide. PD includes TESOL and VATESOL conferences, VESA, FLAVA, BIRE and WIDA conferences via traditional or virtual platforms, to include the needed training for Immigrant Children and Youth services via. Coursework is offered to ensure that teachers who desire to add the ESL endorsement are prepared to take the ESOL Praxis test and reimbursement of the ESOL praxis test fee. EL teachers will be encouraged to take advantage of trainings offered at local, state and national professional meetings and conferences. Teachers will develop a thorough understanding of the WIDA ELD standards through continued division level trainings.
B70: Box 11: | C70: Describe how the LEA will use Title III funds to provide supplemental support to parent, family and community engagement activities. You may identify strategies used in coordination with other related programs, such as Title I, Part A, college and career readiness, and preschool programs. This description should align with expenditures outlined in the Budget Summary and Detailed Budget Description.
B71: Title III Funds will provide supplemental support for parent outreach and communication. Title III will provide community engagement and activities for families; printed materials that inform parents about career and education planning and bilingual books for parents to assist in developing a strong home/school connection. Possible activities will be LIEP Festival, community nights; family picnics with community leaders and education activities. Title III funding will also support meals for these activities. The Language Justice Coordinator (LJC) supports the division’s diverse and non-English speaking families who seek the services provided at the RPS Welcome Center. The LJC also responds to the day-to-day requests for language support services and helps create a welcoming environment for diverse families within the Richmond Public Schools. The LJC leads language support and outreach across media platforms for the district, allowing for multiple touchpoints of communication for families. For the 2022-2023 school year, LJC will support and outreach to schools and families as well as maintain documentation of language support services provided to all schools. These efforts will be evidenced by Language Support Services Milestones and Metrics, Billing Log for Outside Services, School Staff Professional Development Calendar, Log for Internal Translation/Interpretation Requests, Development of Bilingual Volunteer Guidelines, and Welcome Center Registration Paperwork. Funds will also be utilized to develop and provide parents with a Parent learning series to ensure meaningful communication with parents who are speakers of other languages.
B73: Page 24
B74: ='Main Page'!$G$9 -> 2022-2023 | D74: School Division: | E74: ='Main Page'!$F$13 -> Richmond City Public Schools | I74: Division Number: | J74: ='Main Page'!$F$14 -> 123 | K74: ='Main Page'!$A$6 -> Title III, Part A, Language Instruction for English Learners and Immigrant Students
B75: G. MEASURABLE OBJECTIVES
B76: Section 1 - REQUIRED 2022-2023
B77: Section 4104(a)(2) of ESSA requires that States report the degree to which divisions have made progress toward meeting the objectives and outcomes in their approved applications.
B79: Describe the division's progress towards meeting measurable objectives identified in previous applications: • Specify the measurable objective to which you are referring, • Specify the application year (2020-21 or 2021-2022), • Specify the original data goals and then the data results for each measurable objective, and • Address the activities implemented and the progress made towards reaching the measurable objective.
B81: Measurable Objective 1:
B82: By June 2021, 52% of ELs in K-12 will demonstrate progress in attaining English proficiency as measured by their performance on the spring 2020 WIDA ACCESS for English Learners (ELs) assessment. (2020-2021 application). RPS was unable to calculate an accurate percentage of ELs progress due to COVID. RPS was virtual in SY20-21, and only 492 out 3201 ELs were tested during the 2021 spring WIDA testing window. To remedy this situation, RPS chose to participate in the Fall WIDA testing window (approved by VDOE) in which we tested an additional 1725 ELs for a total of 2217 ELs tested for SY20-21. Based on the 2021 Fall WIDA scores, 48% of students made progress and 7% demonstrated proficiency in 2022. However, we do not have the progress report from VDOE to include the number of students that made progress in the 2021 Fall WIDA testing window. In order to ensure all ELs were tested, RPS also conducted a comprehensive data audit and created an automated 21-22 WIDA testing tracker to make sure all ELs were accounted for in the 21-22 Spring WIDA testing window. 92% of ELs completed their ACCESS exam in the 2022 Spring WIDA testing window. 26% of those students made progress and 3% demonstrated proficiency. The remaining 8% of the students were absent, had transfer or did not complete their assessment due to COVID.
B84: Measurable Objective 2:
B85: By June 30, 2021, EL who were enrolled for the full Fall semester, will increase proficient scores on the SOL Reading by 5%. RPS was unable to increase proficient scores on the SOL Reading by 5%. When comparing the 20-21 Reading SOL test scores with the 18-19 Reading SOL test scores, ELs scores decreased from 38% passing rate to 18%. RPS utilizes the push-in, pull-out and sheltered instruction and ESL classes models depending on student need to deliver appropriate instruction at the elementary school level. Secondary level programs uses the Sheltered instruction, inclusion, push-in, and co-teaching as provided by the LIEP teachers within the scheduled ESL class. However, the deparment has taken corrective action steps to strengthen its instructional programs and increase the level of support ELs receive. RPS has increased the number of LIEP teachers in the division from 37 in 2018 to 84 in 2022. We have developed, implemented and monitored a newcomers program at the middle and high school level; a diploma bearing dropout prevention program - ¡Con Ganas!; and will pilot a K-dual language immersion program in SY22-23. A selected group of LIEP teachers have participated in a coaching program for two years in order to improve their coaching and mentoring skills. The LIEP team central office also actively collaborates with other cross-functioning department to ensure EL families receive wrap-around services.
B87: Measurable Objective 3:
B88: By June 30, 2021, 85% ESL endorsed teachers will participate in a minimum of 15 professional development hours designed for the implementation of the WIDA standards, best practices, Ellevation Strategies and TESOL 6 Ps as evidenced by sign-in sheets, permission to attend forms and receipts from conference travels. The LIEP department met this MO this year. The LIEP department has offered 36 targeted PD sessions for SY21-22. These training sessions were tailored to the needs of RPS stakeholders. The sessions were designed to train administrators, faculty, and staff in whole groups, small group, and one-on-one sessions. 67 or 80% of LIEP teachers participated in 18 professional development sessions this year. Many (but not all) sessions were recorded and stored in the LIEP eLearning Lab to make sure that 100% of our LIEP teachers have access to the trainig sessions and can complete it at their convenience. The LIEP team central office participated in a VDOE sponsored WIDA standards implementation training. Based on the feedback received from VDOE, we will follow their ELD guidelines on the implementation in a multi-year plan.
B90: Measurable Objective 4:
B91: By June 30, 2021, RPS will seek to have 10 teachers working towards completing an ESL endorsement. RPS will provide opportunities for teachers to receive both Praxis and coursework. The LIEP department met this MO this year. The LIEP department and the Talent Office worked in collaboration to support 13 new LIEP teachers and 4 content teachers to add the ESL endorsement to their license. These teachers completed ESOL Praxis test prep coursework. Once the prep coursework was finalized, 100% (17/17) of the teachers that took the ESOL Praxis test passed it.
B93: Page 25
B94: ='Main Page'!$G$9 -> 2022-2023 | D94: School Division: | E94: ='Main Page'!$F$13 -> Richmond City Public Schools | I94: Division Number: | J94: ='Main Page'!$F$14 -> 123 | K94: ='Main Page'!$A$6 -> Title III, Part A, Language Instruction for English Learners and Immigrant Students
B95: G. MEASURABLE OBJECTIVES (CONTINUED)
B97: Measurable Objective 5:
B100: Section 2 - REQUIRED 2022-2023
B101: 1. | C101: State up to five measurable objectives, each incorporating the four components, that will guide the development of the program to be funded with the requested ESEA federal funds.
B102: 2. | C102: Describe the evidence-based research that supports the services and activities (programs, models, instructional methods, and techniques) that will be implemented to achieve each objective and that will be supported by the requested funds. What is a Measurable Objective? A measurable objective has four components: 1) Subject (Who is the target or focus?); 2) Behavior (What will be changed/improved?); 3) Specific criteria for assessing improvement, readiness, or achievement and tools to be used to measure effectiveness; and 4) Time period for performance or assessment.
B104: Measurable Objective 1:
B105: By June 30, 2023, 52% of ELs in K-12 will demonstrate progress in attaining English proficiency as measured by their performance on the spring 2023 WIDA ACCESS for English Learners (ELs) assessment, as compared to the 2022 WIDA ACCESS for English Learners (ELs) assessment.
B107: Effective research-based services and activities that will be implemented and supported by the requested funds to achieve the objective.
B108: RPS uses Title III funds to hire instructional staff to provide supplemental instructional strategies with hands-on learning for student who are identified as an ELs. ExC-Ell strategies aid in front loading and pre-teaching of vocabulary. Collaborative strategies and structure will ensure all four language domains are used to develop language functionality. In addition, LIEP and general education teachers will be trained in the ExC-ELL model. The ExC-ELL model consists of instructional strategies that help teachers differentiate instruction and help students access the content curriculum. RPS will develop comprehensive EL educational plans to include ELP levels, academic background in L1, assessment results, teacher's observations, meeting notes and review of available WIDA and SOL test scores. RPS will ensure that all ELs at levels 1-4.3 receive direct language instruction that is delivered by an ESL endorsed teacher. Appropriate modified instructional materials will be used during language instruction in the LIEP classrooms. Lesson plans will incorporate SOL and ELD standards and language objectives to include a focus on intentional development of academic language.
B110: Page 26
B111: ='Main Page'!$G$9 -> 2022-2023 | D111: School Division: | E111: ='Main Page'!$F$13 -> Richmond City Public Schools | I111: Division Number: | J111: ='Main Page'!$F$14 -> 123 | K111: ='Main Page'!$A$6 -> Title III, Part A, Language Instruction for English Learners and Immigrant Students
B112: G. MEASURABLE OBJECTIVES (CONTINUED)
B114: Measurable Objective 2:
B115: By June 30, 2023, ELs, who were enrolled for the full Fall semester, will increase proficient scores on the 2023 SOL Reading by 5%, as compared to the 2022 SOL scores in grades 3rd through 12th.
B117: Effective research-based services and activities that will be implemented and supported by the requested funds to achieve the objective.
B118: RPS will utilize push-in, pull-out, newcomers services, K-dual language program, and direct ESL instruction models depending on students' academic needs to deliver appropriate instruction at the elementary school level. Secondary level programs will use sheltered instruction, push-in, pull-out, and co-teaching as provided by the LIEP teachers within the scheduled ESL class. RPS will train LIEP teachers and general education teachers in grades K-12 who serve large populations of EL students which is approximately 25% of the teaching staff. Instructional staff will receive training on Ellevation strategies, best practices and ExC-ELL strategies. They will also be supported using the Train the Trainer model to provide professional development. LIEP teachers are also stipend to prepare and provide PD sessions after their contractual hours. The EL Instructional coach will schedule training at the school level in collaboration with the elementary, secondary, and newcomer instructional specialists. A PLC for teachers will be implemented this year. During PLC, LIEP instructional specialists will meet with elementary, middle and high scool teachers separately to address their specific instructional and compliance needs. These meetings will serve a dual purpose. LIEP specialists will provide PD sessions and will also discuss school data such as PALS, iReady, Imagine Learning, Interim assessments, SOL Reading test scores, and WIDA scores.
B120: Measurable Objective 3:
B121: By June 30, 2023, ELs, who were enrolled for the full Fall semester, will increase proficient scores on the 2023 SOL mathematics by 5%, as compared to the 2022 SOL scores in grades 3rd through 12th.
B123: Effective research-based services and activities that will be implemented and supported by the requested funds to achieve the objective.
B124: RPS will utilize push-in, pull-out, newcomers services, K-dual language program, and direct ESL instruction models depending on students' academic needs to deliver appropriate instruction at the elementary school level. Secondary level programs will use sheltered instruction, push-in, pull-out, and co-teaching as provided by the LIEP teachers within the scheduled ESL class. RPS will train LIEP teachers and general education teachers in grades K-12 who serve large populations of EL students which is approximately 25% of the teaching staff. Instructional staff will receive training on Ellevation strategies, best practices and ExC-ELL strategies. They will also be supported using the Train the Trainer model to provide professional development. LIEP teachers are also stipend to prepare and provide PD sessions after their contractual hours. The EL Instructional coach will schedule training at the school level in collaboration with the elementary, secondary, and newcomer instructional specialists. A PLC for teachers will be implemented this year. During PLC, LIEP instructional specialists will meet with elementary, middle and high scool teachers separately to address their specific instructional and compliance needs. These meetings will serve a dual purpose. LIEP specialists will provide PD sessions and will also discuss school data such as PALS, iReady, Imagine Learning, Interim assessments, SOL Mathematics test scores, and WIDA scores.
B126: Page 27
B127: ='Main Page'!$G$9 -> 2022-2023 | D127: School Division: | E127: ='Main Page'!$F$13 -> Richmond City Public Schools | I127: Division Number: | J127: ='Main Page'!$F$14 -> 123 | K127: ='Main Page'!$A$6 -> Title III, Part A, Language Instruction for English Learners and Immigrant Students
B128: G. MEASURABLE OBJECTIVES (CONTINUED)
B130: Measurable Objective 4:
B131: By June 30, 2023, 90% of ESL endorsed teachers will participate in a minimum of 15 professional development hours designed for the implementation of LIEPs, WIDA standards, best practices, Title III compliance indicators, Ellevation Strategies, and TESOL 6 Ps as evidenced by sign-in sheets, permission to attend forms and receipts from conference travels.
B133: Effective research-based services and activities that will be implemented and supported by the requested funds to achieve the objective.
B134: Research shows that providing focused and targeted professional development will have an impact on academic achievement. McNeal’s (2016) study found a strong relationship between ACCESS for ELLs scores and Georgia Criterion-Referenced Competencies scores. School districts and teachers in Virginia and possibly other locales may use the results of this study to make informed decisions on instruction, best practices for language acquisition, professional development opportunities for teachers, and policy changes to support English Learners in the content classroom (DuHart, J. 2019). RPS has created a SY22-23 Professional Development Plan delineating training opportuntities for all stakeholders in the division. These opportunities include best practices for language acquisition, WIDA standards, TESOL 6 Principles for Exemplary Teaching of ELs, Ellevation's PD modules, strategies to Cluster ELs in the content classroom, Colloboration between LIEP teachers and content teachers, and Teaching Language in Content among other sessions. We have also created a platform for stakeholder to access PD recordings at the distric level, LIEP eLearning Lab. After each PD session, recordings will be shared with all participants to include those were not able to attend, and then uploaded into the LIEP eLearning Lab. Funds will be used to cover the cost of conferences, travel meals, lodging and materials needed for turn around training. They will participate in conferences such as those facilitated by WIDA, VESA and FLAVA while promoting best practice in language acquisition.
B136: Measurable Objective 5:
B139: Effective research-based services and activities that will be implemented and supported by the requested funds to achieve the objective.
B142: Page 28
B143: ='Main Page'!$G$9 -> 2022-2023 | D143: School Division: | E143: ='Main Page'!$F$13 -> Richmond City Public Schools | I143: Division Number: | J143: ='Main Page'!$F$14 -> 123 | K143: ='Main Page'!$A$6 -> Title III, Part A, Language Instruction for English Learners and Immigrant Students
B144: H. TITLE III PROGRAM DETAILS
B146: Possible Subgrant Activities
B147: Sec. 3116(d)(1-9) – Possible Subgrantee Activities: Place an X next to the activities below if you will use Title III funds in 2021-2022 to provide these activities.
B149: Box A.
B150: Possible Activities Serving ELs in LEAs Receiving Title III Funds | N150: Place an X to Show How Funds Will be Used This Year 2022-2023
B151: Supporting the development and implementation of LIEPs | N151: X
B152: Enhancing existing LIEPs and programs for restructuring and reforming schools with EL populations | N152: X
B153: Supporting implementation of school wide programs | N153: X
B154: Professional development to teachers and other personnel serving Els | N154: X
B155: Parent, family and community engagement activities | N155: X
B156: Supporting the development and implementation of pre-school programs
B157: Improving LIEPs by upgrading curricula, instructional materials, software and assessment procedures | N157: X
B158: Improving instruction of ELs with disabilities | N158: X
B159: Providing tutorials, career and technical education
B160: Offering programs to help ELs achieve success in post-secondary education | N160: X
B161: Other (if other, do not mark with an X, briefly describe the activity conducted in the white box)
B163: Sec.3201(7) of the ESEA – Identify the language(s) of instruction if your LEA provides the Transitional Bilingual, Dual Language or Two-way Immersion Programs . If you do not provide these LIEPs, mark Not Applicable (N/A).
B165: Box B.
B166: LIEPs | N166: Language of Instruction (if applicable)
B167: Transitional Bilingual | N167: X
B168: Dual Language or Two-way Immersion | N168: N/A
B170: Page 29

Sheet IY
B1: ='Main Page'!$G$9 -> 2022-2023 | D1: School Division: | E1: ='Main Page'!$F$13 -> Richmond City Public Schools | I1: Division Number: | J1: ='Main Page'!$F$14 -> 123 | K1: ='Main Page'!$A$6 -> Title III, Part A, Language Instruction for English Learners and Immigrant Students
B2: I. IMMIGRANT CHILDREN & YOUTH (IY) FUNDS UNDER TITLE III
B4: Complete if IY funds are allocated
B6: Purpose of Immigrant Children and Youth (IY) Funds
B8: Under Section 3114 of the ESEA, Immigrant Children and Youth (IY) funds may be used for supplemental services to improve the academic achievement of IY students including activities that increase the knowledge and skills of teachers who serve IY students. All services provided to IY students using IY funds must supplement, and not supplant, the services that must be provided to IY students under Title VI of the Civil Rights Act of 1964 (Title VI), the Equal Educational Opportunities Act of 1974 (EEOA), and other requirements, including those under State or local laws. Immigrant Children and Youth (IY) funds must solely be expended on programs and services for immigrant students or their families.
B10: Description of Program and Services for Immigrant Students
B11: Describe how the division will use Immigrant Children and Youth (IY) funds to provide enhanced instructional opportunities specifically for immigrant students or their families.
B12: RPS will use Title III Part A Immigrant and Youth (IY) funding to support stipends for staff who are integral to the success of the dropout prevention initiative through such actions as facilitating parent workshops and strengthening the home-school connection. Funds will also be used to build the capacity of teachers and staff to implement the following models for core-content and language support: Newcomers classes, self-contained and co-teaching ELs and IY, and non-traditional alternative programs. Instruction is differentiated at the core and EL classroom through the use of best practices, ESL strategies, ExC-ELL, and shelter instruction to meet the needs of ELs and IY at all proficiency levels, Long-term ELs, EL students with limited or interrupted formal education (SLIFE), and Dually-identified ELs. Funding will also support Ellevation training designed to help teachers monitor & evaluate EL students in language assistance programs and exit EL students from programs when proficient. This will also help to monitor exited students to ensure students are not prematurely exited. The capacity of teachers and staff will be strengthened by the provision of professional development opportunities and conferences geared to support teachers who teach English Learners. These conferences include but are not limited to Teachers of English as a Second Language (TESOL), Virginia TESOL (VATESOL), Foreign Language Association of Virginia (FLAVA), Bilingual Immigrant and Refugee (BIRE) and World-Class Instructional Design and Assessment (WIDA). Parent Learning Workshops, designed to further strengthen the home-school connection will also be implemented. Title III Part A IY funding will also be used to secure materials and supplies associated with the implementation of staff training. This funding will provide materials and supplies for teacher training and materials and supplies to support academic as well as social-emotional growth in an effort to promote intensive skills focus with appropriately scaffolded instructional strategies. These supplemental instructional materials and supplies include but are not limited to student workbooks, replacement dictionaries and parent learning series materials. Through these efforts, RPS endeavors to enhance instructional opportunities specifically for immigrant students and their families
B14: Describe how the division will evaluate the success of the enhanced instructional opportunities targeting immigrant students or their families.
B15: The RPS IY services will be evaluated internally by LIEP. The evaluation is conducted in order to ensure that our programs meet their goals of helping IY students develop English language skills and acquire content area competencies. The evaluation will serve as an indicator of strengths and specific needs of the program to: 1. Ensure that Federal guidelines are being implemented 2. Review the curriculum to ensure fidelity 3. Review instructional materials for alignment with EL needs 4. Observe classrooms to evaluate instruction and engagement between teachers and students 5. Review student data to calculate the growth in English language proficiency. RPS instructional team access data/SOL time in program and in subgroups annually and then as needed at the division level and at the school level to provide appropriate instruction for students. At the division level we include the Title III Coordinator, Director of Instruction, Title I Coordinator, ES/MS/HS Directors, Sp. Ed. Coordinator and the Office of Grant Management and Compliance to review data and to make determination of program effectiveness. At the school level, the Title III Coordinator meets with teachers on a monthly bases to determine student need and program effectiveness. RPS will review SOL and WIDA assessment data as well as using input from the Title III, Part A Coordinator, LIEP teachers, EL instructional Assistants, parent liaisons, parent facilitator, and other EL staff. Parent and student feedback on program implementation will also be obtained. Class rosters and student grades will be monitored for progress on a quarterly basis. Data from Ellevation, iReady, Read 180, System 44, English 3D, and Imagine Learning will also be reviewed to make program improvements and adjustments.
B17: Page 30

Sheet Private Schools
B1: ='Main Page'!$G$9 -> 2022-2023 | D1: School Division: | E1: ='Main Page'!$F$13 -> Richmond City Public Schools | I1: Division Number: | J1: ='Main Page'!$F$14 -> 123 | K1: ='Main Page'!$A$6 -> Title III, Part A, Language Instruction for English Learners and Immigrant Students
B2: J. PRIVATE SCHOOL PARTICIPATION
B4: Each year, the school division must contact all eligible private (nonprofit) schools and engage in meaningful consultation on the availability of equitable services funded by Title III, Part A. (ESEA Title VIII Uniform Provisions, Part F, Subpart 1).
B6: 1. | C6: Are there eligible private schools in the school division's attendance area? Mark Yes if you have Private Schools, even if they refuse funds.
C7: X | D7: Yes (If yes, complete the remainder of this page.) | K7: No (If no, it is not necessary to complete the rest of this page.)
B9: 2. | C9: Place an "X" in the appropriate block(s) to indicate how private schools were notified of the availability of equitable services funded by Title III, Part A. (Copies of the notification must be kept on file for monitoring purposes.)
D10: Regular Mail | K10: Certified Mail
D12: Telephone Calls | J12: X | K12: Meetings
D14: Visits to the Private School | J14: X | K14: Other (Please specify) | M14: Email
B16: 3. | C16: How many English Learners Level 1-4.3 received services in the public school division for the 2021-2022 school year? | N16: 3127
B18: 4. | C18: Determining Set-Asides (These fields will calculate automatically once enrollment figures have been entered).
C19: a. Title III Budget | J19: =Budget!K7 -> 429835.88
C20: b. Proportionate Share | J20: =(J19)*(H72/(N16+H72)) -> 8092.297709
C21: c. Additional set-aside for equitable services (if necessary) | J21: -0.01
C22: d. Amount to use for set-aside calculations | J22: =J20+J21 -> 8092.287709
B24: 5. | C24: Determining additional set-asides as a result of Transferability. These fields will calculate automatically once budget and enrollment figures have been entered.
C25: a. Title III Budget | J25: =SUM(Transferability!H9,Transferability!M9) -> 0
C26: b. Proportionate Share | J26: =(J25)*(H72/(N16+H72)) -> 0
B28: Page 31
B29: ='Main Page'!$G$9 -> 2022-2023 | D29: School Division: | E29: ='Main Page'!$F$13 -> Richmond City Public Schools | I29: Division Number: | J29: ='Main Page'!$F$14 -> 123 | K29: ='Main Page'!$A$6 -> Title III, Part A, Language Instruction for English Learners and Immigrant Students
B30: CALCULATION OF SET-ASIDES
B31: 6. | C31: For the 2022-2023 award year, enter the estimated private school-set aside onto the Title III Budget tab under the “Budget for 2022-2023” column in the appropriate object codes on the “Private School Set-Aside” lines. On the Budget Detail pages, list the amounts in the appropriate object codes in the “Private School Set-Aside for 2022-2023” lines.
B33: 7. | C33: Complete the chart below: • In Column A, list all eligible private schools in the school division. • In column B, indicate the participation status of the listed private school(s) for the 2022-2023 award year, as a result of consultation. • In Column C, enter number of English learner students in private schools participating in services for the 2022-2023 award year. Only complete if you answered yes in column B. • In Column D, enter the description of services provided for participating children. Only complete if you answered yes in column B. • Column E will automatically calculate the value of services for the 2022-2023 award year.
B35: A | F35: B | H35: C | J35: D | M35: E | O35: F
B36: Private Schools | F36: Participation Staus for 2022-2023 Award Year? (Yes/No) | H36: Number of Identified Students | J36: Description of Services | M36: Estimated Value of Services from 2022-2023 Title IIIA Budget, Per School | O36: Estimated Value of Additional Services from Transferability Funds
B37: All Saints Catholic Schools | F37: No | M37: =ROUND(IF(F37="Yes",H37*$D$73,0),2) -> 0 | O37: =ROUND(IF(F37="Yes",H37*$G$73,0),2) -> 0
B38: Anna Julia Cooper Episcopal | F38: No | M38: =ROUND(IF(F38="Yes",H38*$D$73,0),2) -> 0 | O38: 0
B39: Benjamin and Lillian Rochkind Yeshiva of VA | F39: No | M39: 0 | O39: 0
B40: Charterhouse | F40: No | M40: 0 | O40: 0
B41: Church Hill Academy | F41: No | M41: 0 | O41: 0
B42: Cristo Rey Richmond | F42: Yes | H42: 46 | J42: tutoring | M42: 6204.09 | O42: 0
B43: Elijah House Academy | F43: No | M43: 0 | O43: 0
B44: Ephesus Junior Academy | F44: No | M44: 0 | O44: 0
B45: Good Sheperd Episcopal | F45: No | M45: 0 | O45: 0
B46: Lynnhaven Academy | F46: No | M46: 0 | O46: 0
B47: Ola Family Services | F47: No | M47: 0 | O47: 0
B48: Orchard House | F48: No | M48: 0 | O48: 0
B49: Precious Blessings Academy | F49: Yes | H49: 2 | J49: online platforms | M49: 269.74 | O49: 0
B50: Richmond Preparatory Christian Academy | F50: No | M50: 0 | O50: 0
B51: Rudlin Torah Academy | F51: No | M51: 0 | O51: 0
B52: Sabot at Ston | F52: No | M52: 0 | O52: 0
B53: St. Andrew | F53: No | M53: 0 | O53: 0
B54: St. Benedict | F54: Yes | H54: 12 | J54: tutoring | M54: 1618.46 | O54: 0
B55: St. Bridget | F55: No | M55: 0 | O55: 0
B56: St. Catherine's | F56: No | M56: 0 | O56: 0
B57: St. Joseph's Villa Sara Dooley | F57: No | M57: 0 | O57: 0
B58: Richmond Waldorf School | F58: No | M58: 0 | O58: 0
M59: 0 | O59: 0
M60: 0 | O60: 0
M61: 0 | O61: 0
M62: 0 | O62: 0
M63: 0 | O63: 0
M64: 0 | O64: 0
M65: 0 | O65: 0
M66: 0 | O66: 0
M67: 0 | O67: 0
M68: 0 | O68: 0
M69: 0 | O69: 0
M70: 0 | O70: 0
M71: 0 | O71: 0
B72: Total Identified Students | H72: =SUM(H37:I71) -> 60 | J72: Total Private School Set-Asides | M72: =SUM(M37:N71) -> 8092.29 | O72: =SUM(O37:P71) -> 0
C73: Per Pupil Expenditure (calculated field): | D73: =(J22/H72) -> 134.8714618 | F73: Per Pupil Expenditure for Transferability funds (calculated field): | G73: =(J26/H72) -> 0 | M73: Use this Figure for Private School Set-Asides in the 2022-2023 Budget | O73: Use this Figure for Private School Set-Asides in the 2022-2023 Transferability Budget
B75: Page 32

Sheet GEPA
B1: ='Main Page'!$G$9 -> 2022-2023 | D1: School Division: | E1: ='Main Page'!$F$13 -> Richmond City Public Schools | I1: Division Number: | J1: ='Main Page'!$F$14 -> 123 | K1: ='Main Page'!$A$6 -> Title III, Part A, Language Instruction for English Learners and Immigrant Students
B2: K. GENERAL EDUCATION PROVISIONS ACT (GEPA) SECTION 427
B4: Section 427 of the General Education Provisions Act (GEPA) requires applicants for federal funds to include in their applications a description of the steps the applicant will take to ensure equitable access to, and participation in, federally-assisted programs for students, teachers, and other program beneficiaries with special needs. The provision allows applicants discretion in developing the required description. The statute highlights six types of barriers that can impede equitable access or participation: gender, race, national origin, color, disability, or age. Based on local circumstances, the applicant should determine whether these or other barriers may prevent students, teachers, etc., from such access or participation in the federally-funded project or activity. The description in the application of steps to be taken to overcome these barriers need not be lengthy; the application may provide a clear and succinct description of how the applicant plans to address those barriers that are applicable to their circumstances.
B5: Describe the steps the division will take to ensure equitable access to, and participation in, grant-funded programs for students, teachers, and other program beneficiaries with special needs as required by the General Education Provisions Act (GEPA) 427, OMB Control No. 1894-00045, Section 427.
B6: Richmond Public Schools serves an academically, culturally, and socio-economically diverse population of children and families. The district and the Board of Education are strongly committed to equal access and treatment for all students, families, employees, and the general public. Richmond Public Schools’ board policy of nondiscrimination guides and governs decision making at all levels. Such policies incorporate the following principles: the Board of Education shall not discriminate against children, parents or guardians of children, employees, applicants, contractors, or individuals participating in board and/or agency sponsored activities. The board is committed to the provision of equal access in all child/family/employment and business programs, activities, services and operations that are deployed or provided directly by the board, as well as those operated or provided by another entity on behalf of the board under contractual or other arrangements. This policy is established to provide an environment free from discrimination and harassment based upon age, race, color, disability, gender, marital status, national origin, religion, or sexual orientation.
B8: Page 33

Sheet Expenditure Descriptions
B1: ='Main Page'!$G$9 -> 2022-2023 | D1: School Division: | E1: ='Main Page'!$F$13 -> Richmond City Public Schools | I1: Division Number: | J1: ='Main Page'!$F$14 -> 123 | K1: ='Main Page'!$A$6 -> Title III, Part A, Language Instruction for English Learners and Immigrant Students
B2: EXPENDITURE ACCOUNT DESCRIPTIONS
B4: These accounts are for budgeting and recording expenditures of the educational agency for activities under its control. Below are definitions of the major expenditure categories. The descriptions provided are examples only. For further clarification on the proper expenditures of funds, contact your school division budget or finance office, the grant specialist in the Virginia Department of Education, or refer to the appropriate federal act.
B6: OBJECT CODE DEFINITIONS:
B7: (revised 4/8/21)
B9: 1000 | C9: PERSONAL SERVICES – Includes all compensation for the direct labor of persons in the employment of the local government. Salaries and wages paid to employees for full‐ and part‐time work, including overtime, shift differential, and similar compensation. Includes payments for time not worked, including sick leave, vacation, holidays, jury duty, military leave, and other paid absences that are earned during the reporting period. For the purposes of this report, the term “salaries” means all compensation including base wage. This also includes amounts paid through salary reduction plans, such as tax‐sheltered annuities and flexible benefit plans. Do not confuse this definition with the Virginia Retirement System (VRS) definition, which excludes supplements for retirement calculation purposes in some circumstances.
B11: 2000 | C11: EMPLOYEE BENEFITS – Job related benefits provided to employees as part of their total compensation. Fringe benefits include the employer’s portion of FICA, pensions, insurance (life, health, disability income, etc.) and employee allowances. NOTE: Fringe Benefits are a significant component of employee compensation and, like salaries and wages, are charged to the appropriate object of expenditure within each program. If possible, fringe benefit costs should be charged to the applicable educational program or activity on an ongoing basis. An alternative is to charge all fringe benefits to various benefit accounts. As part of the year‐end closing process, these accounts are closed, and all costs are allocated to the appropriate educational program or activity. The following methods are suggested for allocating such cost at year‐end. If these methods do not provide reasonable allocations based on circumstances within the school division, then the school division should use another reasonable allocation method. Consistency in application should be maintained at all times. 1) Allocation by percentage of payroll dollars 2) Allocation by Head Count 3) Direct to Program or Activity
B13: 3000 | C13: PURCHASED/CONTRACTUAL SERVICES – Services acquired from outside sources (i.e., private vendors, public authorities, or other governmental entities). Purchase of the service is on a fee basis or fixed time contract basis. Payments for rentals and utilities are not included in this account description. Allowable payments would be to individual or firms that are independent contractors and not employees of the grantee or sub‐grantee organization. The word honorarium is sometimes used to characterize such payments; the term “fee” is preferred. Food Purchases – Prepared meals, working meals, and/or catered services purchased through a vendor are included in this object code. Reimbursement is capped at the per diem rate for the meal listed according to the state travel regulations. Examples for this object code include meals provided during day‐long professional development sessions, or meals provided to support attendance at family engagement activities. Food purchased from catering services and restaurants such as Pizza Hut, Panera Bread, and Subway is included in this object code. Transportation Services Public Carriers – Payments to public carriers for transportation of pupils on vehicles that are used by the public. Include payments for pupils transported in intra‐city transit buses, taxicabs, airplanes, and intercity/interstate passenger buses. Transportation Services Private Carriers – Payments (either cash or tokens) to parents for transportation of pupils in lieu of providing transportation on school buses. Include allowable payments to parents for pupils attending public, private, and non‐sectarian schools. Include costs associated with transporting special education students in school board‐owned vehicles to and from school. Transportation Services by Contract – Payments to private owners of school buses who contract with the school board to transport pupils to and from public schools. Include payments to owners of private vehicles that contract with the school board to transport pupils to and from designated public and private schools.
C14: Purchase of Service from Other Governmental Entities – Payments for services purchased from other governmental entities (i.e., other local governments, public authorities, state agencies, and other LEAs) on a contract/fee basis. Tuition payments to other local governments for a jointly operated center are not included here but are reported under “Payments to Joint Operations” (object code 7000). Tuition Paid – Other Divisions In‐State, Tuition Paid – Other Divisions Out‐of‐State, and Tuition Paid – Private Schools are included in this object code.
B16: 4000 | C16: INTERNAL SERVICES – Charges from an Internal Service Fund to other functions/activities/elements of the local government for the use of intergovernmental services, such as data processing, automotive/motor pool, central purchasing/central stores, print shop, and risk management. These services are provided by internal services within the School District and possibly the county but not a vendor. Food Purchases – Food purchased from the food services department of a school division or sub‐grantee equivalent to support professional development or family engagement events is included in this object code. For example, internal expenses for school cafeterias to provide meals to support attendance at family engagement activities are included in this object code.
B18: Page 34
B19: 5000 | C19: OTHER CHARGES – Include expenditures that support the use of programs. Includes expenditures that support the program, including utilities (maintenance and operation of plant), staff/administrative/consultant travel, office phone charges, training, leases/rental, indirect cost, and other. Food Purchases – Food Purchases under this object code is restricted to food purchases related to travel reimbursement for meals only (see Travel below). If the sub‐recipient’s internal travel policies conform to state travel regulations, reimbursement is allowable at per diem meals rates according to state travel regulations. If the sub‐recipient’s internal travel policies require reimbursement for the cost of each meal, reimbursement is capped at the per diem rate for the meal listed according to the state travel regulations. Sub‐recipients must elect either meals per diem or per meals costs as their internal travel policy. Telecommunications – Include expenditures for recurring telecommunications services for the use of on‐line computer technology (e.g., telephone/telecommunications line charges). Telephone charges for line service for Internet connectivity and the Electronic Classroom program. Package pricing from a vendor for Accident or cyber‐risk insurance, LTE mobile carrier data plans, Internet access via an Internet Service Provider. Package pricing from a vendor for hardware, content filtering, data plans, extended warranty services and other components of the package when no breakout pricing is available. Utilities – Payments for heat, electricity, water, and sewer services regardless of whether the service is provided by a private enterprise authority or an enterprise fund operated by a local government. Communications – Payments for postal, messenger, and telecommunications services, typically office voice telephone charges. (Telecommunication costs directly related to technology uses should be coded under 6000.) In addition, office telephone charges would be coded under this code. Insurance – Payments for insurance except those that relate to personal services (i.e., hospitalization, group life, worker’s compensation, unemployment).
C20: Leases and Rentals – Includes payments for leases that are not capitalized and rental of land, structures, and equipment. Do not include payments made under a lease‐purchase agreement. Travel – includes payments for travel reimbursement for staff/administrative/consultant travel. These are travel costs that are being reimbursed directly to travelers. These costs may include lodging, mileage, meals, and incidentals as allowable according to state travel regulations or documented sub‐recipient internal travel policies. If the sub‐recipient does not have documented internal travel policies, state travel regulations will prevail. Contributions to Other Entities – Includes payments to other governmental entities or community organizations that are not related to the direct purchase of a service on a fee basis (which is reported under object code 3000) or payments to joint operations (which are reflected under object code 7000). Public Assistance Payments – Payments to individuals for public assistance programs (general government use only). Miscellaneous Other Charges – Includes expenditures that support the program, including indirect costs and other costs.
B22: 6000 | C22: MATERIALS AND SUPPLIES – Includes articles and commodities that are consumed or materially altered when used and minor equipment that is not capitalized. This includes any equipment purchased under $5,000, unless the LEA has set a lower capitalization threshold. Therefore, computer equipment under $5,000 would be reported in “materials and supplies.” Food Purchases – Food items purchased from a grocery store or its equivalent for snacks or breaks is included in this object code. Examples include bottled water, granola bars, cookies, and fruit purchased from a store such as Wal‐Mart, Food Lion, Costco, etc. Prepared meals is not included in this object code; see object code 3000 for prepared/working/catered meals as purchased/contracted services. Vehicle and Powered Equipment Fuels – Gasoline, lubricating oils, or such other fuel used in the operation of vehicles and powered equipment (e.g., lawnmowers) purchased from private sources or governmental agencies. Vehicle and Powered Equipment Supplies – Tires, spark plugs, batteries, and chains used in the operation of vehicles and powered equipment purchased from private sources or governmental agencies. Textbooks – All textbooks and workbooks purchased to be used in the classroom. Instructional Materials – Books (not textbooks) and other materials.
C23: Technology Software/On‐line Content – Include expenditures for videodiscs and computer programs used in the classroom for instructional purposes, operating system software (i.e., standalone software, not software that is pre‐installed and included in hardware costs), application software, and on‐line or downloadable software and content. Include expenditures for both additions and replacement. Non‐Capitalized Technology Hardware – Include expenditures for hardware or classroom technology equipment that is not capitalized. Non‐Capitalized Technology Infrastructure – Include expenditures for technology infrastructure that is not capitalized.
B25: Page 35
B26: 8000 | C26: CAPITAL OUTLAY – Note: Indirect cost cannot be claimed against capital outlay and equipment. Outlays that result in the acquisition of or additions to fixed assets. Capital Outlay includes the purchase of fixed assets both replacement and/or additional. Capital Outlay Replacement Technology – Hardware Replacements – Include capital outlay for replacement of hardware or classroom technology equipment. (For further clarification on which expenditures should be included in this object code, see the “Special Note” below). Technology – Infrastructure Replacements – Include capital outlay for replacement of technology infrastructure. (For further clarification on which expenditures should be included in this object code, see the “Special Note” below). Capital Outlay Additions – Include machinery, equipment, furniture, fixtures, communications equipment, motor vehicles, etc. that are capitalized. Technology – Hardware Additions – Include capital outlay for additional hardware or classroom technology equipment. (For further clarification on which expenditures should be included in this object code, see the “Special Note” below). Technology – Infrastructure Additions – Include capital outlay for additional technology infrastructure. (For further clarification on which expenditures should be included in this object code, see the “Special Note” below).
C27: Special Note ‐ Classification of Hardware and Infrastructure Expenditures: Report expenditures under technology “hardware” for computers, associated peripheral equipment, and other specialized technology equipment. Computers include desktop and laptop machines, handheld computers (i.e., Personal Digital Assistants or PDAs), and mainframe machines. Peripheral equipment includes devices attached to computers, such as monitors, keyboards, disk drives, modems, printers, scanners, cameras and speakers, etc. Report other specialized computer devices under technology “hardware” such as fax‐back and voice‐mail resources; videoconferencing and other distance education tools, including satellite transmitters and receivers; cable‐based receivers; and modem or codec‐based video equipment; projection devices, from transparent and opaque projectors to video monitors; and graphing calculators and other specialized computational aids. Report expenditures under technology “infrastructure” for equipment and devices that enable the linking of computers or video hardware to networks (such as routers, hubs, switches, access servers, modems, or codecs). Infrastructure also refers to cabling installations, whether wire, fiber optic, or coaxial, as well as electrical capacity expansion or HVAC upgrades to support networks. In wireless networking systems, include receivers and transmitters under infrastructure.
B29: Page 36

Sheet General Assurances
B1: ='Main Page'!$G$9 -> 2022-2023 | D1: School Division: | E1: ='Main Page'!$F$13 -> Richmond City Public Schools | I1: Division Number: | J1: ='Main Page'!$F$14 -> 123 | K1: ='Main Page'!$A$6 -> Title III, Part A, Language Instruction for English Learners and Immigrant Students
B2: GENERAL ASSURANCES
B4: Title I, Part A | F4: Improving Basic Programs Operated by Local Educational Agencies
B5: Title I, Part C | F5: Education of Migratory Children
B6: Title I, Part D, Subpart 2 | F6: Prevention and Intervention Programs for Children and Youth Who Are Neglected, Delinquent, or At-Risk
B7: Title II, Part A | F7: Supporting Effective Instruction
B8: Title III, Part A | F8: Language Instruction for English Learners and Immigrant Students
B9: Title IV, Part A | F9: Student Support and Academic Enrichments Grants
B10: Title V, Part B, Subpart 2 | F10: Rural and Low-Income School Program
B12: The school division/grantee assures:
B13: I. | C13: Each program will be administered in accordance with all applicable statutes, regulations, program plans, and applications;
B14: II. | C14: The control of funds provided under each program and title to property acquired with program funds will be in a public agency, a nonprofit private agency, institution, organization, or an Indian tribe, if the law authorizing the program provides for assistance to those entities;
B15: III. | C15: The public agency, nonprofit private agency, institution, organization, or Indian tribe, will administer the funds and property to the extent required by the authorizing statutes;
B16: IV. | C16: It will adopt and use proper methods of administering each program, including -
C17: A. | D17: The enforcement of any obligations imposed by law on agencies, institutions, organizations, and other recipients responsible for carrying out each program;
C18: B. | D18: The correction of deficiencies in program operations that are identified through audits, monitoring, or evaluation and that:
D19: 1. | E19: It will maintain fiscal effort in support of free public education;
D20: 2. | E20: It will provide services with state and local funds that are at least comparable to services provided in schools and areas not receiving special federal funds;
D21: 3. | E21: The majority of the resources in the school division are derived from nonfederal funds;
D22: 4. | E22: It is in compliance with the requirements in Title VIII, Section 8524 and has no policy that prevents, or otherwise denies participation in, constitutionally protected prayer in public elementary and secondary schools;
D23: 5. | E23: It will comply with the audit requirements for each program;
D24: 6. | E24: The federal funds are used to supplement, not supplant regular nonfederal funds;
D25: 7. | E25: It will cooperate in carrying out any evaluation of each program conducted by or for the state educational agency, the Secretary, or other federal officials;
D26: 8. | E26: It will use such fiscal control and fund accounting procedures as will ensure proper disbursement of, and accounting for, federal funds paid to the applicant under each program;
D27: 9. | E27: It will submit such reports to the state educational agency (which shall make the reports available to the Governor) and the Secretary of Education as the state educational agency and Secretary may require to enable the state educational agency and the Secretary to perform their duties under each program;
D28: 10. | E28: It will maintain such records for five years, provide such information, and afford such access to the records as the state educational agency (after consultation with the Governor) or the Secretary may reasonably require to carry out the state educational agency’s or the Secretary’s duties;
D29: 11. | E29: It consulted with teachers, school administrators, parents, members of the community, nonprofit organizations and other interested parties in the development of this plan;
D30: 12. | E30: It afforded a reasonable opportunity for public comment on the plan or application and considered such comment before the application was submitted;
D31: 13. | E31: It will provide information in an understandable and uniform format and, to the extent practicable, be provided in a language that the parents can understand;
D32: 14. | E32: It is in compliance with the requirement regarding equal access to public school facilities as specified in Title VIII, Section 8525;
D33: 15. | E33: It is in compliance with the requirement regarding the prohibition on aiding and abetting sexual abuse as specified in Title VIII, Section 8546;
D34: 16. | E34: It will comply with the other application requirements outlined in
F35: Section 8501. Private School Children;
F36: Section 8502. Bypass; and
F37: Section 8521. Maintenance of Effort under Title VIII –Other Provisions;
D38: 17. | E38: It will ensure that funds are expended in accordance with the school division’s approved application or amended application. In the event the local division needs to expend funds in any manner other than stipulated in the approved application, the plan must be amended using the amendment process provided by the Department of Education. The application must be amended before funds can be expended for activities not approved in the original application;
C39: C. | D39: It will collect and disseminate information collected under Section 1111 in a manner that protects the privacy of individuals;
C40: D. | D40: It will adhere to the provisions of the Federal Funding Transparency and Accountability Act (FFATA), and will obtain a valid DUNS number prior to applying for funds;
C41: E. | D41: It will comply with the provisions of 2 CFR part 200 section 200.116, which prohibits the purchase of certain telecommunications and video surveillance services or equipment as described in Public Law 115-232, section 889.
B42: V. | C42: It will comply with Section 22.1-277.07, of the Code of Virginia that requires the expulsion for one year of any student determined to have brought a firearm to school. A description of each incident, the name of the school concerned, the number of students expelled from each school, and the type of firearm used in each instance of expulsion will be reported to the Virginia Department of Education in compliance with provisions under Section 8561 (Gun-Free Schools Act). This agency has a policy that requires referral to the criminal justice or the juvenile delinquency system of any student who brings a firearm or weapon to school; and
B43: VI. | C43: It will participate, if selected, in the state National Assessment of Educational Progress in 4th and 8th grade reading and mathematics carried out under Section 303 of the National Assessment of Educational Progress Act.
B45: Page 37

Sheet Program Specific Assurances
B1: ='Main Page'!$G$9 -> 2022-2023 | D1: School Division: | E1: ='Main Page'!$F$13 -> Richmond City Public Schools | I1: Division Number: | J1: ='Main Page'!$F$14 -> 123 | K1: ='Main Page'!$A$6 -> Title III, Part A, Language Instruction for English Learners and Immigrant Students
B2: PROGRAM SPECIFIC ASSURANCES
B4: Title III funds cannot be used for academic programs and LIEP services provided to ELs that are required under other local, state, and federal laws to include Title VI of the Civil Rights Act of 1964, the Equal Educational Opportunities Act of 1974 (EEOA). The division will comply with the supplement, not supplant, provisions as described below:
C6: Section 3115
C7: (g) SUPPLEMENT, NOT SUPPLANT - Federal funds made available under this subpart shall be used so as to supplement the level of federal, state, and local public funds that, in the absence of such availability, would have been expended for programs for English learners and immigrant children and youth and in no case to supplant such Federal, State, and local public funds.
B8: The school division/grantee assures:
B9: I. | C9: It will include in the plan under ESEA Section 3114 a certification that all teachers in any LIEP are, or will be, funded under this part are fluent in English and any other language used for instruction, including having written and oral communications skills;
B10: II. | C10: All ELs will be identified within 30 days of enrollment
B11: III. | C11: It will comply with the parental notification requirements as described below:
C12: A. | D12: Each eligible entity using funds provided under this title to provide a LIEP shall, not later than 30 days after the beginning of the school year, inform a parent or the parents of ELs identified for participation in, or participating in, such program of —
D13: 1. | E13: the reasons for the identification of their child as an EL and in need of placement in a LIEP;
D14: 2. | E14: the child’s level of English proficiency, how such level was assessed, and the status of the child’s academic achievement;
D15: 3. | E15: the method of instruction used in the program in which their child is, or will be, participating, and the methods of instruction used in other available programs, including how such programs differ in content, instruction goals, and use of English and a native language in instruction;
D16: 4. | E16: how the program in which their child is, or will be participating, will meet the educational strengths and needs of the child;
D17: 5. | E17: how such program will specifically help their child learn English, and meet age appropriate academic achievement standards for grade promotion and graduation;
D18: 6. | E18: the specific exit requirements for such program, the expected rate of transition from such program into classrooms that are not tailored for ELs, and the expected rate of graduation from secondary school for such program if funds under this title are used for children in secondary schools;
D19: 7. | E19: in the case of a child with a disability, how such program meets the objectives of the individualized education program of the child; and
D20: 8. | E20: information pertaining to parental rights that includes written guidance —
E21: a. | F21: detailing —
F22: (i). | G22: the right that parents have to have their child immediately removed from such program upon their request; and
F23: (ii). | G23: the options that parents have to decline to enroll their child in such program or to choose another program or method of instruction, if available; and
E24: b. | F24: assisting parents in selecting among various programs and methods of instruction, if more than one program or method is offered by the eligible entity.
B25: Page 38
B26: ='Main Page'!$G$9 -> 2022-2023 | D26: School Division: | E26: ='Main Page'!$F$13 -> Richmond City Public Schools | I26: Division Number: | J26: ='Main Page'!$F$14 -> 123 | K26: ='Main Page'!$A$6 -> Title III, Part A, Language Instruction for English Learners and Immigrant Students
B27: PROGRAM SPECIFIC ASSURANCES
C28: B. | D28: RECEIPT OF INFORMATION- The information required to be provided under subsection (a) to a parent shall be provided in an understandable and uniform format and, to the extent practicable, in a language that the parent can understand.
B29: IV. | C29: It will comply with the Parents Right-to-Know requirements in ESEA Section 1112(e);
B30: V. | C30: It will annually assess the English proficiency of all ELs participating in programs funded under this part;
B31: VI. | C31: It will base its proposed plan on effective research on teaching ELs;
B32: VII. | C32: It will ensure that the programs will enable children to speak, read, write, and comprehend the English language and meet challenging state academic content and student academic achievement standards;
B33: VIII. | C33: It will not violate any state law, including state constitutional law, regarding the education of ELs, consistent with ESEA Sections 3125 and 3126;
B34: IX. | C34: It consulted with teachers, researchers, school administrators and other school personnel, parents and family members, community members, public or private entities, institutions of higher education, and other stakeholders in developing the Title III local plan described in the program overview section;
B35: X. | C35: It will, if applicable, coordinate activities and share relevant data under the plan with local Head Start agencies, including migrant and seasonal Head Start agencies, and other early childhood education providers; and
B36: XI. | C36: Immigrant children and youth (IY) funds will be specifically targeted to eligible immigrant students and their families.
B38: Page 39

Sheet Prefills (hidden)
A1: Allocation Total Column: | C1: x | D1: =SUM(F6:F145) -> 14410456 | G1: 7 | H1: 8 | I1: 9 | J1: 10 | K1: 11 | L1: 12 | M1: 13 | N1: 14 | O1: 15 | P1: 16 | Q1: 17 | R1: 18 | S1: 19 | T1: 20 | U1: 21 | V1: 22 | W1: 23 | X1: 24 | Y1: 25 | Z1: 26 | AA1: 27 | AB1: 28 | AC1: 29 | AD1: 30 | AE1: 31 | AF1: 32 | AG1: 33 | AH1: 34 | AI1: 35 | AJ1: 36 | AK1: 37 | AL1: 38 | AM1: 39 | AN1: 40 | AO1: 41 | AP1: 42 | AQ1: 43 | AR1: 44 | AS1: 45 | AT1: 46 | AU1: 47 | AV1: 48 | AW1: 49 | AX1: 50
A2: Allocation Check Column: | D2: =14410456-D1 -> 0
B3: =SUBTOTAL(3,B6:B145) -> 139 | D3: Title III, Part A (IY + EL) | AN3: Anchor Cell is AN3
A4: Project Group ID: | D4: 6 | AN4: Change Colors on all the sheets
A5: Division | B5: Div Num | D5: Div Num | E5: Consolidated App Flag | F5: Allocation
A6: Accomack County Public Schools | B6: 1 | D6: 1 | F6: 80484.91
A7: Albemarle County Public Schools | B7: 2 | D7: 2 | F7: 123030.41 | H7: Funding Source | AN7: Color and Color# (Number)
A8: Alexandria City Public Schools | B8: 101 | D8: 3 | F8: 1575.76 | H8: Title II, Part A, Transferability
A9: Alleghany Highlands Public Schools | B9: 3 | D9: 4 | F9: 5090.92 | H9: Title IV, Part A, Transferability | AN9: 1 | AO9: 2 | AP9: 3 | AQ9: 4 | AR9: 5 | AS9: 6 | AT9: 7 | AU9: 8 | AW9: Step 1. Go to "Narrative" TAB and click on a CELL with LAST Year's Blank COLOR
A10: Amelia County Public Schools | B10: 4 | D10: 5 | F10: 3515.15 | AN10: 9 | AO10: 10 | AP10: 11 | AQ10: 12 | AR10: 13 | AS10: 14 | AT10: 15 | AU10: 16 | AZ10: Press the Format Painter ICON. Click on the Cell AX10. (Old Color should show)
A11: Amherst County Public Schools | B11: 5 | D11: 6 | H11: Title IIIA Categories | AN11: 17 | AO11: 18 | AP11: 19 | AQ11: 20 | AR11: 21 | AS11: 22 | AT11: 23 | AU11: 24
A12: Appomattox County Public Schools | B12: 6 | D12: 7 | F12: 659273.26 | H12: EL Subgrant | AN12: 25 | AO12: 26 | AP12: 27 | AQ12: 28 | AR12: 29 | AS12: 30 | AT12: 31 | AU12: 32
A13: Arlington County Public Schools | B13: 7 | D13: 8 | F13: 19757.6 | H13: IY Subgrant | AN13: 33 | AO13: 34 | AP13: 35 | AQ13: 36 | AR13: 37 | AS13: 38 | AT13: 39 | AU13: 40 | AY13: Step 2. Pick a New COLOR# for this year Type the number into AE21(Color B:)
A14: Augusta County Public Schools | B14: 8 | D14: 9 | F14: 606.06 | AN14: 41 | AO14: 42 | AP14: 43 | AQ14: 44 | AR14: 45 | AS14: 46 | AT14: 47 | AU14: 48 | AY14: Step 3. Refresh the color chart to the left by pessing "Refresh"
A15: Bath County Public Schools | B15: 9 | D15: 10 | F15: 7515.16 | AN15: 49 | AO15: 50 | AP15: 51 | AQ15: 52 | AR15: 53 | AS15: 54 | AT15: 55 | AU15: 56
A16: Bedford County Public Schools | B16: 10 | D16: 11
A17: Bland County Public Schools | B17: 11 | D17: 12 | F17: 8969.71 | H17: Yes or No
A18: Botetourt County Public Schools | B18: 12 | D18: 13 | F18: 3393.94 | H18: Yes
A19: Bristol City Public Schools | B19: 102 | D19: 14 | F19: 606.06 | H19: No | AN19: Range for Color Change | AO19: Tab Name | AT19: Color #
A20: Brunswick County Public Schools | B20: 13 | D20: 15 | F20: 3272.73 | AS20: Old Color A: | AT20: 20 | AW20: -4142
A21: Buchanan County Public Schools | B21: 14 | D21: 16 | F21: 20484.87 | AM21: 1 | AN21: A:R | AO21: Title III Budget | AS21: New Color B: | AT21: 40 | AZ21: Step 4. Refresh the color from Color A: to Color B: for all Tabs listed
A22: Buckingham County Public Schools | B22: 15 | D22: 17 | F22: 8484.86 | AM22: 2 | AN22: A:S | AO22: Transferability
A23: Buena Vista City Public Schools | B23: 103 | D23: 18 | F23: 15030.31 | AM23: 3 | AN23: A:R | AO23: Title III Program
A24: Campbell County Public Schools | B24: 16 | D24: 19 | AM24: 4 | AN24: A:Q | AO24: IY
A25: Caroline County Public Schools | B25: 17 | D25: 20 | F25: 1333.34 | AM25: 5 | AN25: A:Q | AO25: Private Schools
A26: Carroll County Public Schools | B26: 18 | D26: 21 | F26: 522667.09 | AM26: 6 | AN26: A:R | AO26: GEPA
A27: Charles City County Public Schools | B27: 19 | D27: 22 | F27: 7151.52 | AM27: 7 | AN27: A:R | AO27: Expenditure Descriptions
A28: Charlotte County Public Schools | B28: 20 | D28: 23 | F28: 121.21 | AM28: 8 | AN28: A:R | AO28: General Assurances
A29: Charlottesville City Public Schools | B29: 104 | D29: 24 | F29: 128583 | AM29: 9 | AN29: A:R | AO29: Program Specific Assurances
A30: Chesapeake City Public Schools | B30: 136 | D30: 25 | F30: 1818.18
A31: Chesterfield County Public Schools | B31: 21 | D31: 26 | F31: 363.64
A32: Clarke County Public Schools | B32: 22 | D32: 27 | F32: 11030.31
A33: Colonial Beach Town Public Schools | B33: 202 | D33: 28 | F33: 4484.85
A34: Colonial Heights City Public Schools | B34: 106 | D34: 29 | F34: 4300245.83
A35: Craig County Public Schools | B35: 23 | D35: 30 | F35: 87030.38
A36: Culpeper County Public Schools | B36: 24 | D36: 31 | F36: 4606.06
A37: Cumberland County Public Schools | B37: 25 | D37: 32 | F37: 6666.67
A38: Danville City Public Schools | B38: 108 | D38: 33 | F38: 10909.1
A39: Department Of Juvenile Justice | B39: 917 | D39: 34 | F39: 100606.14
A40: Dickenson County Public Schools | B40: 26 | D40: 35
A41: Dinwiddie County Public Schools | B41: 27 | D41: 36 | F41: 4242.42
A42: Emporia City Public Schools | B42: 138 | D42: 37 | F42: 5575.76
A43: Essex County Public Schools | B43: 28 | D43: 38 | F43: 2181.82
A44: Fairfax City Public Schools | B44: 134 | D44: 39 | F44: 14666.68
A45: Fairfax County Public Schools | B45: 29 | D45: 40 | F45: 9575.77
A46: Falls Church City Public Schools | B46: 109 | D46: 41 | F46: 6060.61
A47: Fauquier County Public Schools | B47: 30 | D47: 42 | F47: 35151.55
A48: Floyd County Public Schools | B48: 31 | D48: 43 | F48: 490034.19
A49: Fluvanna County Public Schools | B49: 32 | D49: 44 | F49: 43878.82
A50: Franklin City Public Schools | B50: 135 | D50: 45
A51: Franklin County Public Schools | B51: 33 | D51: 46 | F51: 5333.34
A52: Frederick County Public Schools | B52: 34 | D52: 47
A53: Fredericksburg City Public Schools | B53: 110 | D53: 48 | F53: 5333.34
A54: Galax City Public Schools | B54: 111 | D54: 49 | F54: 1090.91
A55: Giles County Public Schools | B55: 35 | D55: 50 | F55: 2909.1
A56: Gloucester County Public Schools | B56: 36 | D56: 51
A57: Goochland County Public Schools | B57: 37 | D57: 52
A58: Grayson County Public Schools | B58: 38 | D58: 53 | F58: 1335469.53
A59: Greene County Public Schools | B59: 39 | D59: 54 | F59: 14303.04
A60: Greensville County Public Schools | B60: 40 | D60: 55 | F60: 11757.58
A61: Halifax County Public Schools | B61: 41 | D61: 56 | F61: 2545.46
A62: Hampton City Public Schools | B62: 112 | D62: 57 | F62: 606.06
A63: Hanover County Public Schools | B63: 42 | D63: 58 | F63: 5818.18
A64: Harrisonburg City Public Schools | B64: 113 | D64: 59 | F64: 2666.67
A65: Henrico County Public Schools | B65: 43 | D65: 60 | F65: 40242.45
A66: Henry County Public Schools | B66: 44 | D66: 62 | F66: 6545.46
A67: Highland County Public Schools | B67: 45 | D67: 63 | F67: 2909.1
A68: Hopewell City Public Schools | B68: 114 | D68: 65 | F68: 15030.31
A69: Isle Of Wight County Public Schools | B69: 46 | D69: 66 | F69: 2303.03
A70: James City County Public Schools | B70: 47 | D70: 67 | F70: 9333.34
A71: James Madison University | B71: 871 | D71: 68 | F71: 23030.32
A72: King And Queen County Public Schools | B72: 49 | D72: 69 | F72: 3393.94
A73: King George County Public Schools | B73: 48 | D73: 70 | F73: 6181.82
A74: King William County Public Schools | B74: 50 | D74: 71 | F74: 22424.26
A75: Lancaster County Public Schools | B75: 51 | D75: 72 | F75: 3272.73
A76: Lee County Public Schools | B76: 52 | D76: 73 | F76: 6303.04
A77: Lexington City Public Schools | B77: 137 | D77: 74 | F77: 14379.74
A78: Loudoun County Public Schools | B78: 53 | D78: 75 | F78: 2218634.27
A79: Louisa County Public Schools | B79: 54 | D79: 77 | F79: 7757.59
A80: Lunenburg County Public Schools | B80: 55 | D80: 78 | F80: 4606.06
A81: Lynchburg City Public Schools | B81: 115 | D81: 79 | F81: 4848.49
A82: Madison County Public Schools | B82: 56 | D82: 80 | F82: 41090.94
A83: Manassas City Public Schools | B83: 143 | D83: 81 | F83: 3878.79
A84: Manassas Park City Public Schools | B84: 144 | D84: 82 | F84: 113818.27
A85: Martinsville City Public Schools | B85: 116 | D85: 83 | F85: 2303.03
A86: Mathews County Public Schools | B86: 57 | D86: 84 | F86: 484.85
A87: Mecklenburg County Public Schools | B87: 58 | D87: 85 | F87: 50424.28
A88: Middlesex County Public Schools | B88: 59 | D88: 86 | F88: 3030.3
A89: Montgomery County Public Schools | B89: 60 | D89: 87 | F89: 1818.18
A90: Nelson County Public Schools | B90: 62 | D90: 88 | F90: 207224.73
A91: New Kent County Public Schools | B91: 63 | D91: 89 | F91: 250377.14
A92: Newport News City Public Schools | B92: 117 | D92: 90
A93: Norfolk City Public Schools | B93: 118 | D93: 91 | F93: 1333.34
A94: Northampton County Public Schools | B94: 65 | D94: 92 | F94: 1090.91
A95: Northumberland County Public Schools | B95: 66 | D95: 93 | F95: 18181.83
A96: Norton City Public Schools | B96: 119 | D96: 94
A97: Nottoway County Public Schools | B97: 67 | D97: 95 | F97: 10060.62
A98: Orange County Public Schools | B98: 68 | D98: 96 | F98: 848.48
A99: Page County Public Schools | B99: 69 | D99: 97
A100: Patrick County Public Schools | B100: 70 | D100: 98 | F100: 36969.72
A101: Petersburg City Public Schools | B101: 120 | D101: 101 | F101: 589333.81
A102: Pittsylvania County Public Schools | B102: 71 | D102: 102 | F102: 3151.51
A103: Poquoson City Public Schools | B103: 142 | D103: 103 | F103: 363.64
A104: Portsmouth City Public Schools | B104: 121 | D104: 104 | F104: 56242.47
A105: Powhatan County Public Schools | B105: 72 | D105: 106 | F105: 16727.29
A106: Prince Edward County Public Schools | B106: 73 | D106: 108 | F106: 27757.6
A107: Prince George County Public Schools | B107: 74 | D107: 109 | F107: 14424.25
A108: Prince William County Public Schools | B108: 75 | D108: 110 | F108: 80443.89
A109: Pulaski County Public Schools | B109: 77 | D109: 111 | F109: 24606.09
A110: Radford City Public Schools | B110: 122 | D110: 112 | F110: 37212.15
A111: Rappahannock County Public Schools | B111: 78 | D111: 113 | F111: 252242.63
A112: Richmond City Public Schools | B112: 123 | D112: 114 | F112: 20484.87
A113: Richmond County Public Schools | B113: 79 | D113: 115 | F113: 24363.66
A114: Roanoke City Public Schools | B114: 124 | D114: 116 | F114: 13212.13
A115: Roanoke County Public Schools | B115: 80 | D115: 117 | F115: 180485
A116: Rockbridge County Public Schools | B116: 81 | D116: 118 | F116: 134303.14
A117: Rockingham County Public Schools | B117: 82 | D117: 119 | F117: 606.06
A118: Russell County Public Schools | B118: 83 | D118: 120 | F118: 22909.11
A119: Salem City Public Schools | B119: 139 | D119: 121 | F119: 14303.04
A120: Scott County Public Schools | B120: 84 | D120: 122 | F120: 2666.67
A121: Shenandoah County Public Schools | B121: 85 | D121: 123 | F121: 416097.51
A122: Smyth County Public Schools | B122: 86 | D122: 124 | F122: 165212.25
A123: Southampton County Public Schools | B123: 87 | D123: 126 | F123: 7515.16
A124: Spotsylvania County Public Schools | B124: 88 | D124: 127 | F124: 12969.71
A125: Stafford County Public Schools | B125: 89 | D125: 128 | F125: 210666.84
A126: State Operated Programs | B126: 901 | D126: 130 | F126: 19515.17
A127: Staunton City Public Schools | B127: 126 | D127: 131 | F127: 73504.73
A128: Suffolk City Public Schools | B128: 127 | D128: 132 | F128: 104484.93
A129: Surry County Public Schools | B129: 90 | D129: 134
A130: Sussex County Public Schools | B130: 91 | D130: 135 | F130: 2424.24
A131: Tazewell County Public Schools | B131: 92 | D131: 136 | F131: 114141.6
A132: Va Beach City Public Schools | B132: 128 | D132: 137 | F132: 1696.98
A133: Va Dept Of Correctional Education | B133: 900 | D133: 138
A134: VSDB Staunton | B134: 218 | D134: 139 | F134: 16000.02
A135: Warren County Public Schools | B135: 93 | D135: 142
A136: Washington County Public Schools | B136: 94 | D136: 143 | F136: 325558.63
A137: Waynesboro City Public Schools | B137: 130 | D137: 144 | F137: 139515.27
A138: West Point Town Public Schools | B138: 207 | D138: 202 | F138: 969.7
A139: Westmoreland County Public Schools | B139: 95 | D139: 207 | F139: 848.48
A140: Williamsburg City Public Schools | B140: 131 | D140: 218 | F140: 969.7
A141: Winchester City Public Schools | B141: 132 | D141: 871
A142: Wise County Public Schools | B142: 96 | D142: 900
A143: Wythe County Public Schools | B143: 97 | D143: 901
A144: York County Public Schools | B144: 98 | D144: 917 | F144: 484.85
